Workbook

Sheet RESUMEN
B6: DATOS DE CABECERA PACC
B7: MONTO ESTIMADO TOTAL | C7: =PACC!B10 -> 178786967.1
B8: CANTIDAD DE PROCESOS REGISTRADOS | C8: =PACC!B9 -> 87
B9: CAPÍTULO | C9: =IF(PACC!E6="","",PACC!E6) -> 0209
B10: SUB CAPÍTULO | C10: =IF(PACC!E7="","",PACC!E7) -> 01
B11: UNIDAD EJECUTORA | C11: =IF(PACC!E8="","",PACC!E8) -> 0001
B12: UNIDAD DE COMPRA | C12: =IF(PACC!E9="","",PACC!E9) -> Ministerio de Trabajo
B13: AÑO FISCAL | C13: =IF(PACC!E11="","",PACC!E11) -> 2021
B14: FECHA APROBACIÓN | C14: =IF(PACC!E12="","",PACC!E12) -> 
B15: MONTOS ESTIMADOS SEGÚN OBJETO DE CONTRATACIÓN
B16: BIENES | C16: =SUMIF(ObjetoContratacionOculto,"="&Bienes,TotalEstColumnValue) -> 129100607.1
B17: OBRAS | C17: =SUMIF(ObjetoContratacionOculto,"="&Obras,TotalEstColumnValue) -> 10000000
B18: SERVICIOS | C18: =SUMIF(ObjetoContratacionOculto,"="&Servicios,TotalEstColumnValue) -> 39686360
B19: SERVICIOS: CONSULTORÍA | C19: =SUMIF(ObjetoContratacionOculto,"="&ServiciosConsultoria,TotalEstColumnValue) -> 0
B20: SERVICIOS: CONSULTORÍA BASADA EN LA CALIDAD DE LOS SERVICIOS | C20: =SUMIF(ObjetoContratacionOculto,"="&ConsultoriaServicios,TotalEstColumnValue) -> 0
B21: MONTOS ESTIMADOS SEGÚN CLASIFICACIÓN MIPYME
B22: MIPYME | C22: =SUMIF(MIPYMEOculto,"="&MIPYMESí,TotalEstColumnValue) -> 12071826
B23: MIPYME MUJER | C23: =SUMIF(MIPYMEOculto,"="&MIPYMEMujer,TotalEstColumnValue) -> 6232650
B24: NO MIPYME | C24: =SUMIF(MIPYMEOculto,"="&MIPYMENo,TotalEstColumnValue) -> 160482491.1
B25: MONTOS ESTIMADOS SEGÚN TIPO DE PROCEDIMIENTO
B26: COMPRAS POR DEBAJO DEL UMBRAL | C26: =SUMIF(ProcedimientoOculto,"="&ModCU,TotalEstColumnValue) -> 896560
B27: COMPRA MENOR | C27: =SUMIF(ProcedimientoOculto,"="&ModCM,TotalEstColumnValue) -> 30566663.64
B28: COMPARACIÓN DE PRECIOS | C28: =SUMIF(ProcedimientoOculto,"="&ModCP,TotalEstColumnValue) -> 42507061.24
B29: LICITACIÓN PÚBLICA | C29: =SUMIF(ProcedimientoOculto,"="&ModLP,TotalEstColumnValue) -> 104816682.3
B30: LICITACIÓN PÚBLICA INTERNACIONAL | C30: =SUMIF(ProcedimientoOculto,"="&ModLI,TotalEstColumnValue) -> 0
B31: LICITACIÓN RESTRINGIDA | C31: =SUMIF(ProcedimientoOculto,"="&ModLR,TotalEstColumnValue) -> 0
B32: SORTEO DE OBRAS | C32: =SUMIF(ProcedimientoOculto,"="&ModSO,TotalEstColumnValue) -> 0
B33: EXCEPCIÓN - BIENES O SERVICIOS CON EXCLUSIVIDAD | C33: =SUMIF(ProcedimientoOculto,"="&ModEBienes,TotalEstColumnValue) -> 0
B34: EXCEPCIÓN - CONSTRUCCIÓN, INSTALACIÓN O ADQUISICIÓN DE OFICINAS PARA EL SERVICIO EXTERIOR | C34: =SUMIF(ProcedimientoOculto,"="&ModEConstruccion,TotalEstColumnValue) -> 0
B35: EXCEPCIÓN - CONTRATACIÓN DE PUBLICIDAD A TRAVÉS DE MEDIOS DE COMUNICACIÓN SOCIAL | C35: =SUMIF(ProcedimientoOculto,"="&ModEPublicidad,TotalEstColumnValue) -> 0
B36: EXCEPCIÓN - OBRAS CIENTÍFICAS, TÉCNICAS, ARTÍSTICAS, O RESTAURACIÓN DE MONUMENTOS HISTÓRICOS | C36: =SUMIF(ProcedimientoOculto,"="&ModEObras,TotalEstColumnValue) -> 0
B37: EXCEPCIÓN - PROVEEDOR ÚNICO | C37: =SUMIF(ProcedimientoOculto,"="&ModEProveedor,TotalEstColumnValue) -> 0
B38: EXCEPCIÓN - RESCISIÓN DE CONTRATOS CUYA TERMINACIÓN NO EXCEDA EL 40% DEL MONTO TOTAL DEL PROYECTO, OBRA O SERVICIO | C38: =SUMIF(ProcedimientoOculto,"="&ModE40,TotalEstColumnValue) -> 0
B39: EXCEPCIÓN - RESOLUCIÓN 15-08 SOBRE COMPRA Y CONTRATACIÓN DE PASAJE AÉREO, COMBUSTIBLE Y REPARACIÓN DE VEHÍCULOS DE MOTOR | C39: =SUMIF(ProcedimientoOculto,"="&ModE1508,TotalEstColumnValue) -> 0

Sheet PACC
B2: PLAN ANUAL DE COMPRAS Y CONTRATACIONES
B3: ="AÑO "&E11 -> AÑO 2021
A6: SNCC.F.069 | D6: Capítulo | E6: 0209
A7: Version: 1.0.0 | D7: Sub Capítulo | E7: 01
D8: Unidad Ejecutora | E8: 0001
A9: Cantidad Procesos Registrados | B9: =COUNTIFS(TotalEstColumnName,"="&TotalEstLabel,TotalEstColumnValue,">0") -> 87 | D9: Unidad de Compra | E9: Ministerio de Trabajo
A10: Monto Estimado Total | B10: =SUMIF(TotalEstColumnName,"="&TotalEstLabel,TotalEstColumnValue) -> 178786967.1 | D10: Código de la Unidad de Compra | E10: 000245
D11: Año Fiscal | E11: 2021
D12: Fecha Aprobación
A15: NOMBRE O REFERENCIA DE CONTRATACIÓN | B15: FINALIDAD DE LA CONTRATACIÓN | C15: OBJETO DE CONTRATACIÓN | D15: PROCEDIMIENTO DE SELECCIÓN | E15: DESTINADO A MIPYMES | F15: CÓDIGO SNIP
A16: GASOLINA | B16: ABASTECER LA FLOTILLA VEHICULAR DEL MINISTERIO DE TRABAJO | C16: Bienes | D16: Licitacion Publica | E16: No | F16: 15101506
A17: FECHA DE NECESSIDAD | B17: FECHA INICIO PROCESO DE COMPRA | C17: 2021-01-01 | D17: LUGAR DE EJECUCIÓN / ENTREGA | E17: Región
B18: TRIMESTRE | C18: =IF(C17="","",IF(AND(MONTH(C17)>=1,MONTH(C17)<=3),1,IF(AND(MONTH(C17)>=4,MONTH(C17)<=6),2,IF(AND(MONTH(C17)>=7,MONTH(C17)<=9),3,4)))) -> 1 | E18: Provincia
B19: FECHA PREVISTA ADJUDICACIÓN | C19: 2021-03-31 | E19: Municipio
B20: TRIMESTRE | C20: =IF(C19="","",IF(AND(MONTH(C19)>=1,MONTH(C19)<=3),1,IF(AND(MONTH(C19)>=4,MONTH(C19)<=6),2,IF(AND(MONTH(C19)>=7,MONTH(C19)<=9),3,4)))) -> 1 | E20: Distrito Municipal
A22: CÓDIGO CATÁLOGO | B22: ARTÍCULO | C22: UNIDAD DE MEDIDA | D22: CANTIDAD TOTAL ESTIMADA | E22: PRECIO UNITARIO ESTIMADO | F22: MONTO TOTAL ESTIMADO
A23: 15101506 | B23: =IFERROR(INDEX(UNSPSCDes,MATCH(INDIRECT(ADDRESS(ROW(),COLUMN()-1,4)),UNSPSCCode,0)),IF(INDIRECT(ADDRESS(ROW(),COLUMN()-1,4))="15101506","Gasolina","")) -> Gasolina | C23: =IFERROR(VLOOKUP("GAL",'Informacion '!P:Q,2,FALSE),"") -> Galón | D23: 164044 | E23: 260 | F23: =INDIRECT(ADDRESS(ROW(),COLUMN()-2,4))*INDIRECT(ADDRESS(ROW(),COLUMN()-1,4)) -> 42651440
A24: 15101505 | B24: =IFERROR(INDEX(UNSPSCDes,MATCH(INDIRECT(ADDRESS(ROW(),COLUMN()-1,4)),UNSPSCCode,0)),IF(INDIRECT(ADDRESS(ROW(),COLUMN()-1,4))="15101505","Combustible diesel","")) -> Combustible diesel | C24: =IFERROR(VLOOKUP("GAL",'Informacion '!P:Q,2,FALSE),"") -> Galón | D24: 2500 | E24: 178.26 | F24: =INDIRECT(ADDRESS(ROW(),COLUMN()-2,4))*INDIRECT(ADDRESS(ROW(),COLUMN()-1,4)) -> 445650
A25: 15111510 | B25: =IFERROR(INDEX(UNSPSCDes,MATCH(INDIRECT(ADDRESS(ROW(),COLUMN()-1,4)),UNSPSCCode,0)),IF(INDIRECT(ADDRESS(ROW(),COLUMN()-1,4))="15111510","Gas licuado de petróleo","")) -> Gas licuado de petróleo | C25: =IFERROR(VLOOKUP("GAL",'Informacion '!P:Q,2,FALSE),"") -> Galón | D25: 42 | E25: 134.53 | F25: =INDIRECT(ADDRESS(ROW(),COLUMN()-2,4))*INDIRECT(ADDRESS(ROW(),COLUMN()-1,4)) -> 5650.26
E26: TOTAL COMPRA ESTIMADA | F26: =SUM(Table4[MONTO TOTAL ESTIMADO]) -> 43102740.26 | H26: =C16 -> Bienes | I26: =E16 -> No | J26: =D16 -> Licitacion Publica
A28: NOMBRE O REFERENCIA DE CONTRATACIÓN | B28: FINALIDAD DE LA CONTRATACIÓN | C28: OBJETO DE CONTRATACIÓN | D28: PROCEDIMIENTO DE SELECCIÓN | E28: DESTINADO A MIPYMES | F28: CÓDIGO SNIP
A29: MATERIALES DE LIMPIEZA | B29: ABASTECER EL MINISTERIO DE TRABAJO | C29: Bienes | D29: Compras Menores | E29: Sí | F29: 531316078
A30: FECHA DE NECESSIDAD | B30: FECHA INICIO PROCESO DE COMPRA | C30: 2021-01-01 | D30: LUGAR DE EJECUCIÓN / ENTREGA | E30: Región
B31: TRIMESTRE | C31: =IF(C30="","",IF(AND(MONTH(C30)>=1,MONTH(C30)<=3),1,IF(AND(MONTH(C30)>=4,MONTH(C30)<=6),2,IF(AND(MONTH(C30)>=7,MONTH(C30)<=9),3,4)))) -> 1 | E31: Provincia
B32: FECHA PREVISTA ADJUDICACIÓN | C32: 2021-03-31 | E32: Municipio
B33: TRIMESTRE | C33: =IF(C32="","",IF(AND(MONTH(C32)>=1,MONTH(C32)<=3),1,IF(AND(MONTH(C32)>=4,MONTH(C32)<=6),2,IF(AND(MONTH(C32)>=7,MONTH(C32)<=9),3,4)))) -> 1 | E33: Distrito Municipal
A35: CÓDIGO CATÁLOGO | B35: ARTÍCULO | C35: UNIDAD DE MEDIDA | D35: CANTIDAD TOTAL ESTIMADA | E35: PRECIO UNITARIO ESTIMADO | F35: MONTO TOTAL ESTIMADO
A36: 53131608 | B36: =IFERROR(INDEX(UNSPSCDes,MATCH(INDIRECT(ADDRESS(ROW(),COLUMN()-1,4)),UNSPSCCode,0)),IF(INDIRECT(ADDRESS(ROW(),COLUMN()-1,4))="53131608","Jabones","")) -> Jabones | C36: =IFERROR(VLOOKUP("UD",'Informacion '!P:Q,2,FALSE),"") -> Unidad | D36: 340 | E36: 275 | F36: =INDIRECT(ADDRESS(ROW(),COLUMN()-2,4))*INDIRECT(ADDRESS(ROW(),COLUMN()-1,4)) -> 93500
A37: 47131604 | B37: =IFERROR(INDEX(UNSPSCDes,MATCH(INDIRECT(ADDRESS(ROW(),COLUMN()-1,4)),UNSPSCCode,0)),IF(INDIRECT(ADDRESS(ROW(),COLUMN()-1,4))="47131604","Escobas","")) -> Escobas | C37: =IFERROR(VLOOKUP("UD",'Informacion '!P:Q,2,FALSE),"") -> Unidad | D37: 342 | E37: 175 | F37: 59850
A38: 47131605 | B38: =IFERROR(INDEX(UNSPSCDes,MATCH(INDIRECT(ADDRESS(ROW(),COLUMN()-1,4)),UNSPSCCode,0)),IF(INDIRECT(ADDRESS(ROW(),COLUMN()-1,4))="47131605","Cepillos de limpieza","")) -> Cepillos de limpieza | C38: =IFERROR(VLOOKUP("UD",'Informacion '!P:Q,2,FALSE),"") -> Unidad | D38: 372 | E38: 175 | F38: 65100
A39: 47131611 | B39: =IFERROR(INDEX(UNSPSCDes,MATCH(INDIRECT(ADDRESS(ROW(),COLUMN()-1,4)),UNSPSCCode,0)),IF(INDIRECT(ADDRESS(ROW(),COLUMN()-1,4))="47131611","Recogedor de basura","")) -> Recogedor de basura | C39: =IFERROR(VLOOKUP("UD",'Informacion '!P:Q,2,FALSE),"") -> Unidad | D39: 151 | E39: 75 | F39: 11325
A40: 47131803 | B40: =IFERROR(INDEX(UNSPSCDes,MATCH(INDIRECT(ADDRESS(ROW(),COLUMN()-1,4)),UNSPSCCode,0)),IF(INDIRECT(ADDRESS(ROW(),COLUMN()-1,4))="47131803","Desinfectantes para uso doméstico","")) -> Desinfectantes para uso doméstico | C40: =IFERROR(VLOOKUP("UD",'Informacion '!P:Q,2,FALSE),"") -> Unidad | D40: 152 | E40: 200 | F40: 30400
A41: 12161902 | B41: =IFERROR(INDEX(UNSPSCDes,MATCH(INDIRECT(ADDRESS(ROW(),COLUMN()-1,4)),UNSPSCCode,0)),IF(INDIRECT(ADDRESS(ROW(),COLUMN()-1,4))="12161902","Surfactantes detergentes","")) -> Surfactantes detergentes | C41: =IFERROR(VLOOKUP("L",'Informacion '!P:Q,2,FALSE),"") -> Litro | D41: 351 | E41: 220 | F41: 77220
A42: 12141901 | B42: =IFERROR(INDEX(UNSPSCDes,MATCH(INDIRECT(ADDRESS(ROW(),COLUMN()-1,4)),UNSPSCCode,0)),IF(INDIRECT(ADDRESS(ROW(),COLUMN()-1,4))="12141901","Cloro cl","")) -> Cloro cl | C42: =IFERROR(VLOOKUP("GAL",'Informacion '!P:Q,2,FALSE),"") -> Galón | D42: 310 | E42: 100 | F42: 31000
A43: 24111503 | B43: =IFERROR(INDEX(UNSPSCDes,MATCH(INDIRECT(ADDRESS(ROW(),COLUMN()-1,4)),UNSPSCCode,0)),IF(INDIRECT(ADDRESS(ROW(),COLUMN()-1,4))="24111503","Bolsas plásticas","")) -> Bolsas plásticas | C43: =IFERROR(VLOOKUP("UD",'Informacion '!P:Q,2,FALSE),"") -> Unidad | D43: 325 | E43: 10 | F43: 3250
A44: 47131502 | B44: =IFERROR(INDEX(UNSPSCDes,MATCH(INDIRECT(ADDRESS(ROW(),COLUMN()-1,4)),UNSPSCCode,0)),IF(INDIRECT(ADDRESS(ROW(),COLUMN()-1,4))="47131502","Pañitos o toallas para limpiar","")) -> Pañitos o toallas para limpiar | C44: =IFERROR(VLOOKUP("YD",'Informacion '!P:Q,2,FALSE),"") -> Yarda | D44: 120 | E44: 115 | F44: 13800
A45: 46181504 | B45: =IFERROR(INDEX(UNSPSCDes,MATCH(INDIRECT(ADDRESS(ROW(),COLUMN()-1,4)),UNSPSCCode,0)),IF(INDIRECT(ADDRESS(ROW(),COLUMN()-1,4))="46181504","Guantes de protección","")) -> Guantes de protección | C45: =IFERROR(VLOOKUP("UD",'Informacion '!P:Q,2,FALSE),"") -> Unidad | D45: 130 | E45: 75 | F45: 9750
A46: 47131801 | B46: =IFERROR(INDEX(UNSPSCDes,MATCH(INDIRECT(ADDRESS(ROW(),COLUMN()-1,4)),UNSPSCCode,0)),IF(INDIRECT(ADDRESS(ROW(),COLUMN()-1,4))="47131801","Limpiadores de pisos","")) -> Limpiadores de pisos | C46: =IFERROR(VLOOKUP("UD",'Informacion '!P:Q,2,FALSE),"") -> Unidad | D46: 60 | E46: 1350 | F46: 81000
A47: 12161903 | B47: =IFERROR(INDEX(UNSPSCDes,MATCH(INDIRECT(ADDRESS(ROW(),COLUMN()-1,4)),UNSPSCCode,0)),IF(INDIRECT(ADDRESS(ROW(),COLUMN()-1,4))="12161903","Agentes de espuma","")) -> Agentes de espuma | C47: =IFERROR(VLOOKUP("UD",'Informacion '!P:Q,2,FALSE),"") -> Unidad | D47: 750 | E47: 200 | F47: 150000
E48: TOTAL COMPRA ESTIMADA | F48: =SUM(Table5[MONTO TOTAL ESTIMADO]) -> 626195 | H48: =C29 -> Bienes | I48: =E29 -> Sí | J48: =D29 -> Compras Menores
A50: NOMBRE O REFERENCIA DE CONTRATACIÓN | B50: FINALIDAD DE LA CONTRATACIÓN | C50: OBJETO DE CONTRATACIÓN | D50: PROCEDIMIENTO DE SELECCIÓN | E50: DESTINADO A MIPYMES | F50: CÓDIGO SNIP
A51: MATERIALES DE LIMPIEZA | B51: PARA EL MANTENIMIENTO DEL MINISTERIIO DE TRABAJO | C51: Bienes | D51: Compras Menores | E51: Sí | F51: 53131608
A52: FECHA DE NECESSIDAD | B52: FECHA INICIO PROCESO DE COMPRA | C52: 2021-01-01 | D52: LUGAR DE EJECUCIÓN / ENTREGA | E52: Región
B53: TRIMESTRE | C53: =IF(C52="","",IF(AND(MONTH(C52)>=1,MONTH(C52)<=3),1,IF(AND(MONTH(C52)>=4,MONTH(C52)<=6),2,IF(AND(MONTH(C52)>=7,MONTH(C52)<=9),3,4)))) -> 1 | E53: Provincia
B54: FECHA PREVISTA ADJUDICACIÓN | C54: 2021-09-30 | E54: Municipio
B55: TRIMESTRE | C55: =IF(C54="","",IF(AND(MONTH(C54)>=1,MONTH(C54)<=3),1,IF(AND(MONTH(C54)>=4,MONTH(C54)<=6),2,IF(AND(MONTH(C54)>=7,MONTH(C54)<=9),3,4)))) -> 3 | E55: Distrito Municipal
A57: CÓDIGO CATÁLOGO | B57: ARTÍCULO | C57: UNIDAD DE MEDIDA | D57: CANTIDAD TOTAL ESTIMADA | E57: PRECIO UNITARIO ESTIMADO | F57: MONTO TOTAL ESTIMADO
A58: 53131608 | B58: =IFERROR(INDEX(UNSPSCDes,MATCH(INDIRECT(ADDRESS(ROW(),COLUMN()-1,4)),UNSPSCCode,0)),IF(INDIRECT(ADDRESS(ROW(),COLUMN()-1,4))="53131608","Jabones","")) -> Jabones | C58: =IFERROR(VLOOKUP("UD",'Informacion '!P:Q,2,FALSE),"") -> Unidad | D58: 340 | E58: 275 | F58: =INDIRECT(ADDRESS(ROW(),COLUMN()-2,4))*INDIRECT(ADDRESS(ROW(),COLUMN()-1,4)) -> 93500
A59: 47131604 | B59: =IFERROR(INDEX(UNSPSCDes,MATCH(INDIRECT(ADDRESS(ROW(),COLUMN()-1,4)),UNSPSCCode,0)),IF(INDIRECT(ADDRESS(ROW(),COLUMN()-1,4))="47131604","Escobas","")) -> Escobas | C59: =IFERROR(VLOOKUP("UD",'Informacion '!P:Q,2,FALSE),"") -> Unidad | D59: 342 | E59: 175 | F59: 59850
A60: 47131605 | B60: =IFERROR(INDEX(UNSPSCDes,MATCH(INDIRECT(ADDRESS(ROW(),COLUMN()-1,4)),UNSPSCCode,0)),IF(INDIRECT(ADDRESS(ROW(),COLUMN()-1,4))="47131605","Cepillos de limpieza","")) -> Cepillos de limpieza | C60: =IFERROR(VLOOKUP("UD",'Informacion '!P:Q,2,FALSE),"") -> Unidad | D60: 372 | E60: 175 | F60: 65100
A61: 47131611 | B61: =IFERROR(INDEX(UNSPSCDes,MATCH(INDIRECT(ADDRESS(ROW(),COLUMN()-1,4)),UNSPSCCode,0)),IF(INDIRECT(ADDRESS(ROW(),COLUMN()-1,4))="47131611","Recogedor de basura","")) -> Recogedor de basura | C61: =IFERROR(VLOOKUP("UD",'Informacion '!P:Q,2,FALSE),"") -> Unidad | D61: 151 | E61: 75 | F61: 11325
A62: 47131803 | B62: =IFERROR(INDEX(UNSPSCDes,MATCH(INDIRECT(ADDRESS(ROW(),COLUMN()-1,4)),UNSPSCCode,0)),IF(INDIRECT(ADDRESS(ROW(),COLUMN()-1,4))="47131803","Desinfectantes para uso doméstico","")) -> Desinfectantes para uso doméstico | C62: =IFERROR(VLOOKUP("GAL",'Informacion '!P:Q,2,FALSE),"") -> Galón | D62: 152 | E62: 200 | F62: 30400
A63: 12161902 | B63: =IFERROR(INDEX(UNSPSCDes,MATCH(INDIRECT(ADDRESS(ROW(),COLUMN()-1,4)),UNSPSCCode,0)),IF(INDIRECT(ADDRESS(ROW(),COLUMN()-1,4))="12161902","Surfactantes detergentes","")) -> Surfactantes detergentes | C63: =IFERROR(VLOOKUP("L",'Informacion '!P:Q,2,FALSE),"") -> Litro | D63: 351 | E63: 220 | F63: 77220
A64: 12141901 | B64: =IFERROR(INDEX(UNSPSCDes,MATCH(INDIRECT(ADDRESS(ROW(),COLUMN()-1,4)),UNSPSCCode,0)),IF(INDIRECT(ADDRESS(ROW(),COLUMN()-1,4))="12141901","Cloro cl","")) -> Cloro cl | C64: =IFERROR(VLOOKUP("GAL",'Informacion '!P:Q,2,FALSE),"") -> Galón | D64: 310 | E64: 100 | F64: 31000
A65: 24111503 | B65: =IFERROR(INDEX(UNSPSCDes,MATCH(INDIRECT(ADDRESS(ROW(),COLUMN()-1,4)),UNSPSCCode,0)),IF(INDIRECT(ADDRESS(ROW(),COLUMN()-1,4))="24111503","Bolsas plásticas","")) -> Bolsas plásticas | C65: =IFERROR(VLOOKUP("UD",'Informacion '!P:Q,2,FALSE),"") -> Unidad | D65: 325 | E65: 10 | F65: 3250
A66: 47131502 | B66: =IFERROR(INDEX(UNSPSCDes,MATCH(INDIRECT(ADDRESS(ROW(),COLUMN()-1,4)),UNSPSCCode,0)),IF(INDIRECT(ADDRESS(ROW(),COLUMN()-1,4))="47131502","Pañitos o toallas para limpiar","")) -> Pañitos o toallas para limpiar | C66: =IFERROR(VLOOKUP("YD",'Informacion '!P:Q,2,FALSE),"") -> Yarda | D66: 120 | E66: 115 | F66: 13800
A67: 46181504 | B67: =IFERROR(INDEX(UNSPSCDes,MATCH(INDIRECT(ADDRESS(ROW(),COLUMN()-1,4)),UNSPSCCode,0)),IF(INDIRECT(ADDRESS(ROW(),COLUMN()-1,4))="46181504","Guantes de protección","")) -> Guantes de protección | C67: =IFERROR(VLOOKUP("UD",'Informacion '!P:Q,2,FALSE),"") -> Unidad | D67: 130 | E67: 75 | F67: 9750
A68: 47131801 | B68: =IFERROR(INDEX(UNSPSCDes,MATCH(INDIRECT(ADDRESS(ROW(),COLUMN()-1,4)),UNSPSCCode,0)),IF(INDIRECT(ADDRESS(ROW(),COLUMN()-1,4))="47131801","Limpiadores de pisos","")) -> Limpiadores de pisos | C68: =IFERROR(VLOOKUP("UD",'Informacion '!P:Q,2,FALSE),"") -> Unidad | D68: 60 | E68: 1350 | F68: 81000
A69: 12161903 | B69: =IFERROR(INDEX(UNSPSCDes,MATCH(INDIRECT(ADDRESS(ROW(),COLUMN()-1,4)),UNSPSCCode,0)),IF(INDIRECT(ADDRESS(ROW(),COLUMN()-1,4))="12161903","Agentes de espuma","")) -> Agentes de espuma | C69: =IFERROR(VLOOKUP("UD",'Informacion '!P:Q,2,FALSE),"") -> Unidad | D69: 750 | E69: 200 | F69: 150000
E70: TOTAL COMPRA ESTIMADA | F70: =SUM(Table6[MONTO TOTAL ESTIMADO]) -> 626195 | H70: =C51 -> Bienes | I70: =E51 -> Sí | J70: =D51 -> Compras Menores
A72: NOMBRE O REFERENCIA DE CONTRATACIÓN | B72: FINALIDAD DE LA CONTRATACIÓN | C72: OBJETO DE CONTRATACIÓN | D72: PROCEDIMIENTO DE SELECCIÓN | E72: DESTINADO A MIPYMES | F72: CÓDIGO SNIP
A73: BEBIDAS Y ENDULZANTES | B73: PARA USO DEL MINISTERIO DE TRABAJO | C73: Bienes | D73: Comparacion de Precios | E73: MIPYME Mujeres | F73: 50202310
A74: FECHA DE NECESSIDAD | B74: FECHA INICIO PROCESO DE COMPRA | C74: 2021-01-01 | D74: LUGAR DE EJECUCIÓN / ENTREGA | E74: Región
B75: TRIMESTRE | C75: =IF(C74="","",IF(AND(MONTH(C74)>=1,MONTH(C74)<=3),1,IF(AND(MONTH(C74)>=4,MONTH(C74)<=6),2,IF(AND(MONTH(C74)>=7,MONTH(C74)<=9),3,4)))) -> 1 | E75: Provincia
B76: FECHA PREVISTA ADJUDICACIÓN | C76: 2021-03-31 | E76: Municipio
B77: TRIMESTRE | C77: =IF(C76="","",IF(AND(MONTH(C76)>=1,MONTH(C76)<=3),1,IF(AND(MONTH(C76)>=4,MONTH(C76)<=6),2,IF(AND(MONTH(C76)>=7,MONTH(C76)<=9),3,4)))) -> 1 | E77: Distrito Municipal
A79: CÓDIGO CATÁLOGO | B79: ARTÍCULO | C79: UNIDAD DE MEDIDA | D79: CANTIDAD TOTAL ESTIMADA | E79: PRECIO UNITARIO ESTIMADO | F79: MONTO TOTAL ESTIMADO
A80: 50202310 | B80: =IFERROR(INDEX(UNSPSCDes,MATCH(INDIRECT(ADDRESS(ROW(),COLUMN()-1,4)),UNSPSCCode,0)),IF(INDIRECT(ADDRESS(ROW(),COLUMN()-1,4))="50202310","Agua mineral","")) -> Agua mineral | C80: =IFERROR(VLOOKUP("UD",'Informacion '!P:Q,2,FALSE),"") -> Unidad | D80: 1539 | E80: 55 | F80: =INDIRECT(ADDRESS(ROW(),COLUMN()-2,4))*INDIRECT(ADDRESS(ROW(),COLUMN()-1,4)) -> 84645
A81: 50202310 | B81: =IFERROR(INDEX(UNSPSCDes,MATCH(INDIRECT(ADDRESS(ROW(),COLUMN()-1,4)),UNSPSCCode,0)),IF(INDIRECT(ADDRESS(ROW(),COLUMN()-1,4))="50202310","Agua mineral","")) -> Agua mineral | C81: =IFERROR(VLOOKUP("PAQ",'Informacion '!P:Q,2,FALSE),"") -> Paquete | D81: 1500 | E81: 360 | F81: 540000
A82: 50161509 | B82: =IFERROR(INDEX(UNSPSCDes,MATCH(INDIRECT(ADDRESS(ROW(),COLUMN()-1,4)),UNSPSCCode,0)),IF(INDIRECT(ADDRESS(ROW(),COLUMN()-1,4))="50161509","Azucares naturales o productos endulzantes","")) -> Azucares naturales o productos endulzantes | C82: =IFERROR(VLOOKUP("PAQ",'Informacion '!P:Q,2,FALSE),"") -> Paquete | D82: 1828 | E82: 175 | F82: 319900
A83: 50201714 | B83: =IFERROR(INDEX(UNSPSCDes,MATCH(INDIRECT(ADDRESS(ROW(),COLUMN()-1,4)),UNSPSCCode,0)),IF(INDIRECT(ADDRESS(ROW(),COLUMN()-1,4))="50201714","Cremas no lácteas","")) -> Cremas no lácteas | C83: =IFERROR(VLOOKUP("UD",'Informacion '!P:Q,2,FALSE),"") -> Unidad | D83: 250 | E83: 550 | F83: 137500
A84: 50201706 | B84: =IFERROR(INDEX(UNSPSCDes,MATCH(INDIRECT(ADDRESS(ROW(),COLUMN()-1,4)),UNSPSCCode,0)),IF(INDIRECT(ADDRESS(ROW(),COLUMN()-1,4))="50201706","Café","")) -> Café | C84: =IFERROR(VLOOKUP("PAQ",'Informacion '!P:Q,2,FALSE),"") -> Paquete | D84: 1570 | E84: 210 | F84: 329700
A85: 50201711 | B85: =IFERROR(INDEX(UNSPSCDes,MATCH(INDIRECT(ADDRESS(ROW(),COLUMN()-1,4)),UNSPSCCode,0)),IF(INDIRECT(ADDRESS(ROW(),COLUMN()-1,4))="50201711","Té instantáneo","")) -> Té instantáneo | C85: =IFERROR(VLOOKUP("UD",'Informacion '!P:Q,2,FALSE),"") -> Unidad | D85: 1639 | E85: 320 | F85: 524480
E86: TOTAL COMPRA ESTIMADA | F86: =SUM(Table7[MONTO TOTAL ESTIMADO]) -> 1936225 | H86: =C73 -> Bienes | I86: =E73 -> MIPYME Mujeres | J86: =D73 -> Comparacion de Precios
A88: NOMBRE O REFERENCIA DE CONTRATACIÓN | B88: FINALIDAD DE LA CONTRATACIÓN | C88: OBJETO DE CONTRATACIÓN | D88: PROCEDIMIENTO DE SELECCIÓN | E88: DESTINADO A MIPYMES | F88: CÓDIGO SNIP
A89: BEBIDAS Y ENDULZANTES | B89: PARA USO DEL MINISTERIO DE TRABAJO | C89: Bienes | D89: Comparacion de Precios | E89: MIPYME Mujeres | F89: 50202310
A90: FECHA DE NECESSIDAD | B90: FECHA INICIO PROCESO DE COMPRA | C90: 2021-04-01 | D90: LUGAR DE EJECUCIÓN / ENTREGA | E90: Región
B91: TRIMESTRE | C91: =IF(C90="","",IF(AND(MONTH(C90)>=1,MONTH(C90)<=3),1,IF(AND(MONTH(C90)>=4,MONTH(C90)<=6),2,IF(AND(MONTH(C90)>=7,MONTH(C90)<=9),3,4)))) -> 2 | E91: Provincia
B92: FECHA PREVISTA ADJUDICACIÓN | C92: 2021-06-01 | E92: Municipio
B93: TRIMESTRE | C93: =IF(C92="","",IF(AND(MONTH(C92)>=1,MONTH(C92)<=3),1,IF(AND(MONTH(C92)>=4,MONTH(C92)<=6),2,IF(AND(MONTH(C92)>=7,MONTH(C92)<=9),3,4)))) -> 2 | E93: Distrito Municipal
A95: CÓDIGO CATÁLOGO | B95: ARTÍCULO | C95: UNIDAD DE MEDIDA | D95: CANTIDAD TOTAL ESTIMADA | E95: PRECIO UNITARIO ESTIMADO | F95: MONTO TOTAL ESTIMADO
A96: 50202310 | B96: =IFERROR(INDEX(UNSPSCDes,MATCH(INDIRECT(ADDRESS(ROW(),COLUMN()-1,4)),UNSPSCCode,0)),IF(INDIRECT(ADDRESS(ROW(),COLUMN()-1,4))="50202310","Agua mineral","")) -> Agua mineral | C96: =IFERROR(VLOOKUP("UD",'Informacion '!P:Q,2,FALSE),"") -> Unidad | D96: 1539 | E96: 55 | F96: =INDIRECT(ADDRESS(ROW(),COLUMN()-2,4))*INDIRECT(ADDRESS(ROW(),COLUMN()-1,4)) -> 84645
A97: 50202310 | B97: =IFERROR(INDEX(UNSPSCDes,MATCH(INDIRECT(ADDRESS(ROW(),COLUMN()-1,4)),UNSPSCCode,0)),IF(INDIRECT(ADDRESS(ROW(),COLUMN()-1,4))="50202310","Agua mineral","")) -> Agua mineral | C97: =IFERROR(VLOOKUP("PAQ",'Informacion '!P:Q,2,FALSE),"") -> Paquete | D97: 1500 | E97: 360 | F97: 540000
A98: 50161509 | B98: =IFERROR(INDEX(UNSPSCDes,MATCH(INDIRECT(ADDRESS(ROW(),COLUMN()-1,4)),UNSPSCCode,0)),IF(INDIRECT(ADDRESS(ROW(),COLUMN()-1,4))="50161509","Azucares naturales o productos endulzantes","")) -> Azucares naturales o productos endulzantes | C98: =IFERROR(VLOOKUP("PAQ",'Informacion '!P:Q,2,FALSE),"") -> Paquete | D98: 1828 | E98: 175 | F98: 319900
A99: 50201714 | B99: =IFERROR(INDEX(UNSPSCDes,MATCH(INDIRECT(ADDRESS(ROW(),COLUMN()-1,4)),UNSPSCCode,0)),IF(INDIRECT(ADDRESS(ROW(),COLUMN()-1,4))="50201714","Cremas no lácteas","")) -> Cremas no lácteas | C99: =IFERROR(VLOOKUP("UD",'Informacion '!P:Q,2,FALSE),"") -> Unidad | D99: 250 | E99: 550 | F99: 137500
A100: 50201706 | B100: =IFERROR(INDEX(UNSPSCDes,MATCH(INDIRECT(ADDRESS(ROW(),COLUMN()-1,4)),UNSPSCCode,0)),IF(INDIRECT(ADDRESS(ROW(),COLUMN()-1,4))="50201706","Café","")) -> Café | C100: =IFERROR(VLOOKUP("PAQ",'Informacion '!P:Q,2,FALSE),"") -> Paquete | D100: 1570 | E100: 210 | F100: 329700
A101: 50201711 | B101: =IFERROR(INDEX(UNSPSCDes,MATCH(INDIRECT(ADDRESS(ROW(),COLUMN()-1,4)),UNSPSCCode,0)),IF(INDIRECT(ADDRESS(ROW(),COLUMN()-1,4))="50201711","Té instantáneo","")) -> Té instantáneo | C101: =IFERROR(VLOOKUP("UD",'Informacion '!P:Q,2,FALSE),"") -> Unidad | D101: 1639 | E101: 320 | F101: 524480
E102: TOTAL COMPRA ESTIMADA | F102: =SUM(Table8[MONTO TOTAL ESTIMADO]) -> 1936225 | H102: =C89 -> Bienes | I102: =E89 -> MIPYME Mujeres | J102: =D89 -> Comparacion de Precios
A104: NOMBRE O REFERENCIA DE CONTRATACIÓN | B104: FINALIDAD DE LA CONTRATACIÓN | C104: OBJETO DE CONTRATACIÓN | D104: PROCEDIMIENTO DE SELECCIÓN | E104: DESTINADO A MIPYMES | F104: CÓDIGO SNIP
A105: BEBIDAS Y ENDULZANTES | B105: PARA USO DEL MINISTERIO DE TRABAJO | C105: Bienes | D105: Comparacion de Precios | E105: Sí | F105: 50202310
A106: FECHA DE NECESSIDAD | B106: FECHA INICIO PROCESO DE COMPRA | C106: 2021-07-01 | D106: LUGAR DE EJECUCIÓN / ENTREGA | E106: Región
B107: TRIMESTRE | C107: =IF(C106="","",IF(AND(MONTH(C106)>=1,MONTH(C106)<=3),1,IF(AND(MONTH(C106)>=4,MONTH(C106)<=6),2,IF(AND(MONTH(C106)>=7,MONTH(C106)<=9),3,4)))) -> 3 | E107: Provincia
B108: FECHA PREVISTA ADJUDICACIÓN | C108: 2021-09-30 | E108: Municipio
B109: TRIMESTRE | C109: =IF(C108="","",IF(AND(MONTH(C108)>=1,MONTH(C108)<=3),1,IF(AND(MONTH(C108)>=4,MONTH(C108)<=6),2,IF(AND(MONTH(C108)>=7,MONTH(C108)<=9),3,4)))) -> 3 | E109: Distrito Municipal
A111: CÓDIGO CATÁLOGO | B111: ARTÍCULO | C111: UNIDAD DE MEDIDA | D111: CANTIDAD TOTAL ESTIMADA | E111: PRECIO UNITARIO ESTIMADO | F111: MONTO TOTAL ESTIMADO
A112: 50202310 | B112: =IFERROR(INDEX(UNSPSCDes,MATCH(INDIRECT(ADDRESS(ROW(),COLUMN()-1,4)),UNSPSCCode,0)),IF(INDIRECT(ADDRESS(ROW(),COLUMN()-1,4))="50202310","Agua mineral","")) -> Agua mineral | C112: =IFERROR(VLOOKUP("UD",'Informacion '!P:Q,2,FALSE),"") -> Unidad | D112: 1539 | E112: 55 | F112: =INDIRECT(ADDRESS(ROW(),COLUMN()-2,4))*INDIRECT(ADDRESS(ROW(),COLUMN()-1,4)) -> 84645
A113: 50202310 | B113: =IFERROR(INDEX(UNSPSCDes,MATCH(INDIRECT(ADDRESS(ROW(),COLUMN()-1,4)),UNSPSCCode,0)),IF(INDIRECT(ADDRESS(ROW(),COLUMN()-1,4))="50202310","Agua mineral","")) -> Agua mineral | C113: =IFERROR(VLOOKUP("PAQ",'Informacion '!P:Q,2,FALSE),"") -> Paquete | D113: 1500 | E113: 360 | F113: 540000
A114: 50161509 | B114: =IFERROR(INDEX(UNSPSCDes,MATCH(INDIRECT(ADDRESS(ROW(),COLUMN()-1,4)),UNSPSCCode,0)),IF(INDIRECT(ADDRESS(ROW(),COLUMN()-1,4))="50161509","Azucares naturales o productos endulzantes","")) -> Azucares naturales o productos endulzantes | C114: =IFERROR(VLOOKUP("PAQ",'Informacion '!P:Q,2,FALSE),"") -> Paquete | D114: 1828 | E114: 175 | F114: 319900
A115: 50201714 | B115: =IFERROR(INDEX(UNSPSCDes,MATCH(INDIRECT(ADDRESS(ROW(),COLUMN()-1,4)),UNSPSCCode,0)),IF(INDIRECT(ADDRESS(ROW(),COLUMN()-1,4))="50201714","Cremas no lácteas","")) -> Cremas no lácteas | C115: =IFERROR(VLOOKUP("UD",'Informacion '!P:Q,2,FALSE),"") -> Unidad | D115: 250 | E115: 550 | F115: 137500
A116: 50201706 | B116: =IFERROR(INDEX(UNSPSCDes,MATCH(INDIRECT(ADDRESS(ROW(),COLUMN()-1,4)),UNSPSCCode,0)),IF(INDIRECT(ADDRESS(ROW(),COLUMN()-1,4))="50201706","Café","")) -> Café | C116: =IFERROR(VLOOKUP("PAQ",'Informacion '!P:Q,2,FALSE),"") -> Paquete | D116: 1570 | E116: 210 | F116: 329700
A117: 50201711 | B117: =IFERROR(INDEX(UNSPSCDes,MATCH(INDIRECT(ADDRESS(ROW(),COLUMN()-1,4)),UNSPSCCode,0)),IF(INDIRECT(ADDRESS(ROW(),COLUMN()-1,4))="50201711","Té instantáneo","")) -> Té instantáneo | C117: =IFERROR(VLOOKUP("UD",'Informacion '!P:Q,2,FALSE),"") -> Unidad | D117: 1639 | E117: 320 | F117: 524480
E118: TOTAL COMPRA ESTIMADA | F118: =SUM(Table9[MONTO TOTAL ESTIMADO]) -> 1936225 | H118: =C105 -> Bienes | I118: =E105 -> Sí | J118: =D105 -> Comparacion de Precios
A120: NOMBRE O REFERENCIA DE CONTRATACIÓN | B120: FINALIDAD DE LA CONTRATACIÓN | C120: OBJETO DE CONTRATACIÓN | D120: PROCEDIMIENTO DE SELECCIÓN | E120: DESTINADO A MIPYMES | F120: CÓDIGO SNIP
A121: BEBIDAS Y ENDULZANTES | B121: PARA USO DEL MINISTERIO DE TRABAJO | C121: Bienes | D121: Comparacion de Precios | E121: No | F121: 50202310
A122: FECHA DE NECESSIDAD | B122: FECHA INICIO PROCESO DE COMPRA | C122: 2021-10-01 | D122: LUGAR DE EJECUCIÓN / ENTREGA | E122: Región
B123: TRIMESTRE | C123: =IF(C122="","",IF(AND(MONTH(C122)>=1,MONTH(C122)<=3),1,IF(AND(MONTH(C122)>=4,MONTH(C122)<=6),2,IF(AND(MONTH(C122)>=7,MONTH(C122)<=9),3,4)))) -> 4 | E123: Provincia
B124: FECHA PREVISTA ADJUDICACIÓN | C124: 2021-12-31 | E124: Municipio
B125: TRIMESTRE | C125: =IF(C124="","",IF(AND(MONTH(C124)>=1,MONTH(C124)<=3),1,IF(AND(MONTH(C124)>=4,MONTH(C124)<=6),2,IF(AND(MONTH(C124)>=7,MONTH(C124)<=9),3,4)))) -> 4 | E125: Distrito Municipal
A127: CÓDIGO CATÁLOGO | B127: ARTÍCULO | C127: UNIDAD DE MEDIDA | D127: CANTIDAD TOTAL ESTIMADA | E127: PRECIO UNITARIO ESTIMADO | F127: MONTO TOTAL ESTIMADO
A128: 50202310 | B128: =IFERROR(INDEX(UNSPSCDes,MATCH(INDIRECT(ADDRESS(ROW(),COLUMN()-1,4)),UNSPSCCode,0)),IF(INDIRECT(ADDRESS(ROW(),COLUMN()-1,4))="50202310","Agua mineral","")) -> Agua mineral | C128: =IFERROR(VLOOKUP("UD",'Informacion '!P:Q,2,FALSE),"") -> Unidad | D128: 1539 | E128: 55 | F128: =INDIRECT(ADDRESS(ROW(),COLUMN()-2,4))*INDIRECT(ADDRESS(ROW(),COLUMN()-1,4)) -> 84645
A129: 50202310 | B129: =IFERROR(INDEX(UNSPSCDes,MATCH(INDIRECT(ADDRESS(ROW(),COLUMN()-1,4)),UNSPSCCode,0)),IF(INDIRECT(ADDRESS(ROW(),COLUMN()-1,4))="50202310","Agua mineral","")) -> Agua mineral | C129: =IFERROR(VLOOKUP("PAQ",'Informacion '!P:Q,2,FALSE),"") -> Paquete | D129: 1500 | E129: 360 | F129: 540000
A130: 50161509 | B130: =IFERROR(INDEX(UNSPSCDes,MATCH(INDIRECT(ADDRESS(ROW(),COLUMN()-1,4)),UNSPSCCode,0)),IF(INDIRECT(ADDRESS(ROW(),COLUMN()-1,4))="50161509","Azucares naturales o productos endulzantes","")) -> Azucares naturales o productos endulzantes | C130: =IFERROR(VLOOKUP("PAQ",'Informacion '!P:Q,2,FALSE),"") -> Paquete | D130: 1828 | E130: 175 | F130: 319900
A131: 50201714 | B131: =IFERROR(INDEX(UNSPSCDes,MATCH(INDIRECT(ADDRESS(ROW(),COLUMN()-1,4)),UNSPSCCode,0)),IF(INDIRECT(ADDRESS(ROW(),COLUMN()-1,4))="50201714","Cremas no lácteas","")) -> Cremas no lácteas | C131: =IFERROR(VLOOKUP("UD",'Informacion '!P:Q,2,FALSE),"") -> Unidad | D131: 250 | E131: 550 | F131: 137500
A132: 50201706 | B132: =IFERROR(INDEX(UNSPSCDes,MATCH(INDIRECT(ADDRESS(ROW(),COLUMN()-1,4)),UNSPSCCode,0)),IF(INDIRECT(ADDRESS(ROW(),COLUMN()-1,4))="50201706","Café","")) -> Café | C132: =IFERROR(VLOOKUP("PAQ",'Informacion '!P:Q,2,FALSE),"") -> Paquete | D132: 1570 | E132: 210 | F132: 329700
A133: 50201711 | B133: =IFERROR(INDEX(UNSPSCDes,MATCH(INDIRECT(ADDRESS(ROW(),COLUMN()-1,4)),UNSPSCCode,0)),IF(INDIRECT(ADDRESS(ROW(),COLUMN()-1,4))="50201711","Té instantáneo","")) -> Té instantáneo | C133: =IFERROR(VLOOKUP("UD",'Informacion '!P:Q,2,FALSE),"") -> Unidad | D133: 1639 | E133: 320 | F133: 524480
E134: TOTAL COMPRA ESTIMADA | F134: =SUM(Table10[MONTO TOTAL ESTIMADO]) -> 1936225 | H134: =C121 -> Bienes | I134: =E121 -> No | J134: =D121 -> Comparacion de Precios
A136: NOMBRE O REFERENCIA DE CONTRATACIÓN | B136: FINALIDAD DE LA CONTRATACIÓN | C136: OBJETO DE CONTRATACIÓN | D136: PROCEDIMIENTO DE SELECCIÓN | E136: DESTINADO A MIPYMES | F136: CÓDIGO SNIP
A137: FERRETERIA Y PINTURA | B137: PARA USO DEL MINISTERIO DE TRABAJO | C137: Bienes | D137: Compras Menores | E137: No | F137: 31211505
A138: FECHA DE NECESSIDAD | B138: FECHA INICIO PROCESO DE COMPRA | C138: 2021-01-01 | D138: LUGAR DE EJECUCIÓN / ENTREGA | E138: Región
B139: TRIMESTRE | C139: =IF(C138="","",IF(AND(MONTH(C138)>=1,MONTH(C138)<=3),1,IF(AND(MONTH(C138)>=4,MONTH(C138)<=6),2,IF(AND(MONTH(C138)>=7,MONTH(C138)<=9),3,4)))) -> 1 | E139: Provincia
B140: FECHA PREVISTA ADJUDICACIÓN | C140: 2021-03-31 | E140: Municipio
B141: TRIMESTRE | C141: =IF(C140="","",IF(AND(MONTH(C140)>=1,MONTH(C140)<=3),1,IF(AND(MONTH(C140)>=4,MONTH(C140)<=6),2,IF(AND(MONTH(C140)>=7,MONTH(C140)<=9),3,4)))) -> 1 | E141: Distrito Municipal
A143: CÓDIGO CATÁLOGO | B143: ARTÍCULO | C143: UNIDAD DE MEDIDA | D143: CANTIDAD TOTAL ESTIMADA | E143: PRECIO UNITARIO ESTIMADO | F143: MONTO TOTAL ESTIMADO
A144: 31211505 | B144: =IFERROR(INDEX(UNSPSCDes,MATCH(INDIRECT(ADDRESS(ROW(),COLUMN()-1,4)),UNSPSCCode,0)),IF(INDIRECT(ADDRESS(ROW(),COLUMN()-1,4))="31211505","Pinturas de aceite","")) -> Pinturas de aceite | C144: =IFERROR(VLOOKUP("GAL",'Informacion '!P:Q,2,FALSE),"") -> Galón | D144: 135 | E144: 1550 | F144: =INDIRECT(ADDRESS(ROW(),COLUMN()-2,4))*INDIRECT(ADDRESS(ROW(),COLUMN()-1,4)) -> 209250
A145: 31211508 | B145: =IFERROR(INDEX(UNSPSCDes,MATCH(INDIRECT(ADDRESS(ROW(),COLUMN()-1,4)),UNSPSCCode,0)),IF(INDIRECT(ADDRESS(ROW(),COLUMN()-1,4))="31211508","Pinturas acrílicas","")) -> Pinturas acrílicas | C145: =IFERROR(VLOOKUP("GAL",'Informacion '!P:Q,2,FALSE),"") -> Galón | D145: 130 | E145: 1550 | F145: 201500
A146: 31211512 | B146: =IFERROR(INDEX(UNSPSCDes,MATCH(INDIRECT(ADDRESS(ROW(),COLUMN()-1,4)),UNSPSCCode,0)),IF(INDIRECT(ADDRESS(ROW(),COLUMN()-1,4))="31211512","Bases de látex","")) -> Bases de látex | C146: =IFERROR(VLOOKUP("GAL",'Informacion '!P:Q,2,FALSE),"") -> Galón | D146: 50 | E146: 950 | F146: 47500
A147: 31211603 | B147: =IFERROR(INDEX(UNSPSCDes,MATCH(INDIRECT(ADDRESS(ROW(),COLUMN()-1,4)),UNSPSCCode,0)),IF(INDIRECT(ADDRESS(ROW(),COLUMN()-1,4))="31211603","Secantes de pintura","")) -> Secantes de pintura | C147: =IFERROR(VLOOKUP("GAL",'Informacion '!P:Q,2,FALSE),"") -> Galón | D147: 150 | E147: 1150 | F147: 172500
A148: 15121804 | B148: =IFERROR(INDEX(UNSPSCDes,MATCH(INDIRECT(ADDRESS(ROW(),COLUMN()-1,4)),UNSPSCCode,0)),IF(INDIRECT(ADDRESS(ROW(),COLUMN()-1,4))="15121804","Preparación contra óxido","")) -> Preparación contra óxido | C148: =IFERROR(VLOOKUP("GAL",'Informacion '!P:Q,2,FALSE),"") -> Galón | D148: 45 | E148: 1350 | F148: 60750
A149: 31211703 | B149: =IFERROR(INDEX(UNSPSCDes,MATCH(INDIRECT(ADDRESS(ROW(),COLUMN()-1,4)),UNSPSCCode,0)),IF(INDIRECT(ADDRESS(ROW(),COLUMN()-1,4))="31211703","Lacas","")) -> Lacas | C149: =IFERROR(VLOOKUP("GAL",'Informacion '!P:Q,2,FALSE),"") -> Galón | D149: 50 | E149: 1100 | F149: 55000
A150: 24121802 | B150: =IFERROR(INDEX(UNSPSCDes,MATCH(INDIRECT(ADDRESS(ROW(),COLUMN()-1,4)),UNSPSCCode,0)),IF(INDIRECT(ADDRESS(ROW(),COLUMN()-1,4))="24121802","Latas de pintura o barniz","")) -> Latas de pintura o barniz | C150: =IFERROR(VLOOKUP("GAL",'Informacion '!P:Q,2,FALSE),"") -> Galón | D150: 43 | E150: 548.65 | F150: 23591.95
E151: TOTAL COMPRA ESTIMADA | F151: =SUM(Table11[MONTO TOTAL ESTIMADO]) -> 770091.95 | H151: =C137 -> Bienes | I151: =E137 -> No | J151: =D137 -> Compras Menores
A153: NOMBRE O REFERENCIA DE CONTRATACIÓN | B153: FINALIDAD DE LA CONTRATACIÓN | C153: OBJETO DE CONTRATACIÓN | D153: PROCEDIMIENTO DE SELECCIÓN | E153: DESTINADO A MIPYMES | F153: CÓDIGO SNIP
A154: FERRETERIA Y PINTURA | B154: PARA USO DEL MINISTERIO DE TRABAJO | C154: Bienes | D154: Compras Menores | E154: No | F154: 31211505
A155: FECHA DE NECESSIDAD | B155: FECHA INICIO PROCESO DE COMPRA | C155: 2021-04-01 | D155: LUGAR DE EJECUCIÓN / ENTREGA | E155: Región
B156: TRIMESTRE | C156: =IF(C155="","",IF(AND(MONTH(C155)>=1,MONTH(C155)<=3),1,IF(AND(MONTH(C155)>=4,MONTH(C155)<=6),2,IF(AND(MONTH(C155)>=7,MONTH(C155)<=9),3,4)))) -> 2 | E156: Provincia
B157: FECHA PREVISTA ADJUDICACIÓN | C157: 2021-06-30 | E157: Municipio
B158: TRIMESTRE | C158: =IF(C157="","",IF(AND(MONTH(C157)>=1,MONTH(C157)<=3),1,IF(AND(MONTH(C157)>=4,MONTH(C157)<=6),2,IF(AND(MONTH(C157)>=7,MONTH(C157)<=9),3,4)))) -> 2 | E158: Distrito Municipal
A160: CÓDIGO CATÁLOGO | B160: ARTÍCULO | C160: UNIDAD DE MEDIDA | D160: CANTIDAD TOTAL ESTIMADA | E160: PRECIO UNITARIO ESTIMADO | F160: MONTO TOTAL ESTIMADO
A161: 31211505 | B161: =IFERROR(INDEX(UNSPSCDes,MATCH(INDIRECT(ADDRESS(ROW(),COLUMN()-1,4)),UNSPSCCode,0)),IF(INDIRECT(ADDRESS(ROW(),COLUMN()-1,4))="31211505","Pinturas de aceite","")) -> Pinturas de aceite | C161: =IFERROR(VLOOKUP("UD",'Informacion '!P:Q,2,FALSE),"") -> Unidad | D161: 90 | E161: 1550 | F161: =INDIRECT(ADDRESS(ROW(),COLUMN()-2,4))*INDIRECT(ADDRESS(ROW(),COLUMN()-1,4)) -> 139500
A162: 31211508 | B162: =IFERROR(INDEX(UNSPSCDes,MATCH(INDIRECT(ADDRESS(ROW(),COLUMN()-1,4)),UNSPSCCode,0)),IF(INDIRECT(ADDRESS(ROW(),COLUMN()-1,4))="31211508","Pinturas acrílicas","")) -> Pinturas acrílicas | C162: =IFERROR(VLOOKUP("UD",'Informacion '!P:Q,2,FALSE),"") -> Unidad | D162: 100 | E162: 1550 | F162: 155000
A163: 31211512 | B163: =IFERROR(INDEX(UNSPSCDes,MATCH(INDIRECT(ADDRESS(ROW(),COLUMN()-1,4)),UNSPSCCode,0)),IF(INDIRECT(ADDRESS(ROW(),COLUMN()-1,4))="31211512","Bases de látex","")) -> Bases de látex | C163: =IFERROR(VLOOKUP("UD",'Informacion '!P:Q,2,FALSE),"") -> Unidad | D163: 40 | E163: 950 | F163: 38000
A164: 31211603 | B164: =IFERROR(INDEX(UNSPSCDes,MATCH(INDIRECT(ADDRESS(ROW(),COLUMN()-1,4)),UNSPSCCode,0)),IF(INDIRECT(ADDRESS(ROW(),COLUMN()-1,4))="31211603","Secantes de pintura","")) -> Secantes de pintura | C164: =IFERROR(VLOOKUP("UD",'Informacion '!P:Q,2,FALSE),"") -> Unidad | D164: 40 | E164: 1150 | F164: 46000
A165: 15121804 | B165: =IFERROR(INDEX(UNSPSCDes,MATCH(INDIRECT(ADDRESS(ROW(),COLUMN()-1,4)),UNSPSCCode,0)),IF(INDIRECT(ADDRESS(ROW(),COLUMN()-1,4))="15121804","Preparación contra óxido","")) -> Preparación contra óxido | C165: =IFERROR(VLOOKUP("UD",'Informacion '!P:Q,2,FALSE),"") -> Unidad | D165: 20 | E165: 1350 | F165: 27000
A166: 31211703 | B166: =IFERROR(INDEX(UNSPSCDes,MATCH(INDIRECT(ADDRESS(ROW(),COLUMN()-1,4)),UNSPSCCode,0)),IF(INDIRECT(ADDRESS(ROW(),COLUMN()-1,4))="31211703","Lacas","")) -> Lacas | C166: =IFERROR(VLOOKUP("UD",'Informacion '!P:Q,2,FALSE),"") -> Unidad | D166: 20 | E166: 1100 | F166: 22000
A167: 24121802 | B167: =IFERROR(INDEX(UNSPSCDes,MATCH(INDIRECT(ADDRESS(ROW(),COLUMN()-1,4)),UNSPSCCode,0)),IF(INDIRECT(ADDRESS(ROW(),COLUMN()-1,4))="24121802","Latas de pintura o barniz","")) -> Latas de pintura o barniz | C167: =IFERROR(VLOOKUP("UD",'Informacion '!P:Q,2,FALSE),"") -> Unidad | D167: 132 | E167: 549.24 | F167: 72499.68
E168: TOTAL COMPRA ESTIMADA | F168: =SUM(Table12[MONTO TOTAL ESTIMADO]) -> 499999.68 | H168: =C154 -> Bienes | I168: =E154 -> No | J168: =D154 -> Compras Menores
A170: NOMBRE O REFERENCIA DE CONTRATACIÓN | B170: FINALIDAD DE LA CONTRATACIÓN | C170: OBJETO DE CONTRATACIÓN | D170: PROCEDIMIENTO DE SELECCIÓN | E170: DESTINADO A MIPYMES | F170: CÓDIGO SNIP
A171: SERVICIOS DE ALIMENTOS Y BEBIDAS | B171: PARA USO DEL MINISTERIO DE TRABAJO | C171: Servicios | D171: Comparacion de Precios | E171: Sí | F171: 93131608
A172: FECHA DE NECESSIDAD | B172: FECHA INICIO PROCESO DE COMPRA | C172: 2021-01-01 | D172: LUGAR DE EJECUCIÓN / ENTREGA | E172: Región
B173: TRIMESTRE | C173: =IF(C172="","",IF(AND(MONTH(C172)>=1,MONTH(C172)<=3),1,IF(AND(MONTH(C172)>=4,MONTH(C172)<=6),2,IF(AND(MONTH(C172)>=7,MONTH(C172)<=9),3,4)))) -> 1 | E173: Provincia
B174: FECHA PREVISTA ADJUDICACIÓN | C174: 2021-03-31 | E174: Municipio
B175: TRIMESTRE | C175: =IF(C174="","",IF(AND(MONTH(C174)>=1,MONTH(C174)<=3),1,IF(AND(MONTH(C174)>=4,MONTH(C174)<=6),2,IF(AND(MONTH(C174)>=7,MONTH(C174)<=9),3,4)))) -> 1 | E175: Distrito Municipal
A177: CÓDIGO CATÁLOGO | B177: ARTÍCULO | C177: UNIDAD DE MEDIDA | D177: CANTIDAD TOTAL ESTIMADA | E177: PRECIO UNITARIO ESTIMADO | F177: MONTO TOTAL ESTIMADO
A178: 93131608 | B178: =IFERROR(INDEX(UNSPSCDes,MATCH(INDIRECT(ADDRESS(ROW(),COLUMN()-1,4)),UNSPSCCode,0)),IF(INDIRECT(ADDRESS(ROW(),COLUMN()-1,4))="93131608","Servicios de suministro de alimentos","")) -> Servicios de suministro de alimentos | C178: =IFERROR(VLOOKUP("UD",'Informacion '!P:Q,2,FALSE),"") -> Unidad | D178: 1 | E178: 1628750 | F178: =INDIRECT(ADDRESS(ROW(),COLUMN()-2,4))*INDIRECT(ADDRESS(ROW(),COLUMN()-1,4)) -> 1628750
E179: TOTAL COMPRA ESTIMADA | F179: =SUM(Table13[MONTO TOTAL ESTIMADO]) -> 1628750 | H179: =C171 -> Servicios | I179: =E171 -> Sí | J179: =D171 -> Comparacion de Precios
A181: NOMBRE O REFERENCIA DE CONTRATACIÓN | B181: FINALIDAD DE LA CONTRATACIÓN | C181: OBJETO DE CONTRATACIÓN | D181: PROCEDIMIENTO DE SELECCIÓN | E181: DESTINADO A MIPYMES | F181: CÓDIGO SNIP
A182: SERVICIOS DE ALIMENTOS Y BEBIDAS | B182: PARA USO DEL MINISTERIO DE TRABAJO | C182: Servicios | D182: Comparacion de Precios | E182: Sí | F182: 93131608
A183: FECHA DE NECESSIDAD | B183: FECHA INICIO PROCESO DE COMPRA | C183: 2021-04-01 | D183: LUGAR DE EJECUCIÓN / ENTREGA | E183: Región
B184: TRIMESTRE | C184: =IF(C183="","",IF(AND(MONTH(C183)>=1,MONTH(C183)<=3),1,IF(AND(MONTH(C183)>=4,MONTH(C183)<=6),2,IF(AND(MONTH(C183)>=7,MONTH(C183)<=9),3,4)))) -> 2 | E184: Provincia
B185: FECHA PREVISTA ADJUDICACIÓN | C185: 2021-06-30 | E185: Municipio
B186: TRIMESTRE | C186: =IF(C185="","",IF(AND(MONTH(C185)>=1,MONTH(C185)<=3),1,IF(AND(MONTH(C185)>=4,MONTH(C185)<=6),2,IF(AND(MONTH(C185)>=7,MONTH(C185)<=9),3,4)))) -> 2 | E186: Distrito Municipal
A188: CÓDIGO CATÁLOGO | B188: ARTÍCULO | C188: UNIDAD DE MEDIDA | D188: CANTIDAD TOTAL ESTIMADA | E188: PRECIO UNITARIO ESTIMADO | F188: MONTO TOTAL ESTIMADO
A189: 93131608 | B189: =IFERROR(INDEX(UNSPSCDes,MATCH(INDIRECT(ADDRESS(ROW(),COLUMN()-1,4)),UNSPSCCode,0)),IF(INDIRECT(ADDRESS(ROW(),COLUMN()-1,4))="93131608","Servicios de suministro de alimentos","")) -> Servicios de suministro de alimentos | C189: =IFERROR(VLOOKUP("UD",'Informacion '!P:Q,2,FALSE),"") -> Unidad | D189: 1 | E189: 1628750 | F189: =INDIRECT(ADDRESS(ROW(),COLUMN()-2,4))*INDIRECT(ADDRESS(ROW(),COLUMN()-1,4)) -> 1628750
E190: TOTAL COMPRA ESTIMADA | F190: =SUM(Table14[MONTO TOTAL ESTIMADO]) -> 1628750 | H190: =C182 -> Servicios | I190: =E182 -> Sí | J190: =D182 -> Comparacion de Precios
A192: NOMBRE O REFERENCIA DE CONTRATACIÓN | B192: FINALIDAD DE LA CONTRATACIÓN | C192: OBJETO DE CONTRATACIÓN | D192: PROCEDIMIENTO DE SELECCIÓN | E192: DESTINADO A MIPYMES | F192: CÓDIGO SNIP
A193: SERVICIOS DE ALIMENTOS Y BEBIDAS | B193: PARA USO DEL MINISTERIO DE TRABAJO | C193: Servicios | D193: Comparacion de Precios | E193: Sí | F193: 93131608
A194: FECHA DE NECESSIDAD | B194: FECHA INICIO PROCESO DE COMPRA | C194: 2021-07-01 | D194: LUGAR DE EJECUCIÓN / ENTREGA | E194: Región
B195: TRIMESTRE | C195: =IF(C194="","",IF(AND(MONTH(C194)>=1,MONTH(C194)<=3),1,IF(AND(MONTH(C194)>=4,MONTH(C194)<=6),2,IF(AND(MONTH(C194)>=7,MONTH(C194)<=9),3,4)))) -> 3 | E195: Provincia
B196: FECHA PREVISTA ADJUDICACIÓN | C196: 2021-09-30 | E196: Municipio
B197: TRIMESTRE | C197: =IF(C196="","",IF(AND(MONTH(C196)>=1,MONTH(C196)<=3),1,IF(AND(MONTH(C196)>=4,MONTH(C196)<=6),2,IF(AND(MONTH(C196)>=7,MONTH(C196)<=9),3,4)))) -> 3 | E197: Distrito Municipal
A199: CÓDIGO CATÁLOGO | B199: ARTÍCULO | C199: UNIDAD DE MEDIDA | D199: CANTIDAD TOTAL ESTIMADA | E199: PRECIO UNITARIO ESTIMADO | F199: MONTO TOTAL ESTIMADO
A200: 93131608 | B200: =IFERROR(INDEX(UNSPSCDes,MATCH(INDIRECT(ADDRESS(ROW(),COLUMN()-1,4)),UNSPSCCode,0)),IF(INDIRECT(ADDRESS(ROW(),COLUMN()-1,4))="93131608","Servicios de suministro de alimentos","")) -> Servicios de suministro de alimentos | C200: =IFERROR(VLOOKUP("UD",'Informacion '!P:Q,2,FALSE),"") -> Unidad | D200: 1 | E200: 1628750 | F200: =INDIRECT(ADDRESS(ROW(),COLUMN()-2,4))*INDIRECT(ADDRESS(ROW(),COLUMN()-1,4)) -> 1628750
E201: TOTAL COMPRA ESTIMADA | F201: =SUM(Table15[MONTO TOTAL ESTIMADO]) -> 1628750 | H201: =C193 -> Servicios | I201: =E193 -> Sí | J201: =D193 -> Comparacion de Precios
A203: NOMBRE O REFERENCIA DE CONTRATACIÓN | B203: FINALIDAD DE LA CONTRATACIÓN | C203: OBJETO DE CONTRATACIÓN | D203: PROCEDIMIENTO DE SELECCIÓN | E203: DESTINADO A MIPYMES | F203: CÓDIGO SNIP
A204: SERVICIOS DE ALIMENTOS Y BEBIDAS | B204: PARA USO DEL MINISTERIO DE TRABAJO | C204: Servicios | D204: Comparacion de Precios | E204: No | F204: 93131608
A205: FECHA DE NECESSIDAD | B205: FECHA INICIO PROCESO DE COMPRA | C205: 2021-10-01 | D205: LUGAR DE EJECUCIÓN / ENTREGA | E205: Región
B206: TRIMESTRE | C206: =IF(C205="","",IF(AND(MONTH(C205)>=1,MONTH(C205)<=3),1,IF(AND(MONTH(C205)>=4,MONTH(C205)<=6),2,IF(AND(MONTH(C205)>=7,MONTH(C205)<=9),3,4)))) -> 4 | E206: Provincia
B207: FECHA PREVISTA ADJUDICACIÓN | C207: 2021-12-31 | E207: Municipio
B208: TRIMESTRE | C208: =IF(C207="","",IF(AND(MONTH(C207)>=1,MONTH(C207)<=3),1,IF(AND(MONTH(C207)>=4,MONTH(C207)<=6),2,IF(AND(MONTH(C207)>=7,MONTH(C207)<=9),3,4)))) -> 4 | E208: Distrito Municipal
A210: CÓDIGO CATÁLOGO | B210: ARTÍCULO | C210: UNIDAD DE MEDIDA | D210: CANTIDAD TOTAL ESTIMADA | E210: PRECIO UNITARIO ESTIMADO | F210: MONTO TOTAL ESTIMADO
A211: 93131608 | B211: =IFERROR(INDEX(UNSPSCDes,MATCH(INDIRECT(ADDRESS(ROW(),COLUMN()-1,4)),UNSPSCCode,0)),IF(INDIRECT(ADDRESS(ROW(),COLUMN()-1,4))="93131608","Servicios de suministro de alimentos","")) -> Servicios de suministro de alimentos | C211: =IFERROR(VLOOKUP("UD",'Informacion '!P:Q,2,FALSE),"") -> Unidad | D211: 1 | E211: 1628750 | F211: =INDIRECT(ADDRESS(ROW(),COLUMN()-2,4))*INDIRECT(ADDRESS(ROW(),COLUMN()-1,4)) -> 1628750
E212: TOTAL COMPRA ESTIMADA | F212: =SUM(Table16[MONTO TOTAL ESTIMADO]) -> 1628750 | H212: =C204 -> Servicios | I212: =E204 -> No | J212: =D204 -> Comparacion de Precios
A214: NOMBRE O REFERENCIA DE CONTRATACIÓN | B214: FINALIDAD DE LA CONTRATACIÓN | C214: OBJETO DE CONTRATACIÓN | D214: PROCEDIMIENTO DE SELECCIÓN | E214: DESTINADO A MIPYMES | F214: CÓDIGO SNIP
A215: MATERIALES DESECHABLES | B215: PARA USO DEL MINISTERIO DE TRABAJO | C215: Bienes | D215: Compras Menores | E215: Sí | F215: 52151704
A216: FECHA DE NECESSIDAD | B216: FECHA INICIO PROCESO DE COMPRA | C216: 2021-01-01 | D216: LUGAR DE EJECUCIÓN / ENTREGA | E216: Región
B217: TRIMESTRE | C217: =IF(C216="","",IF(AND(MONTH(C216)>=1,MONTH(C216)<=3),1,IF(AND(MONTH(C216)>=4,MONTH(C216)<=6),2,IF(AND(MONTH(C216)>=7,MONTH(C216)<=9),3,4)))) -> 1 | E217: Provincia
B218: FECHA PREVISTA ADJUDICACIÓN | C218: 2021-03-31 | E218: Municipio
B219: TRIMESTRE | C219: =IF(C218="","",IF(AND(MONTH(C218)>=1,MONTH(C218)<=3),1,IF(AND(MONTH(C218)>=4,MONTH(C218)<=6),2,IF(AND(MONTH(C218)>=7,MONTH(C218)<=9),3,4)))) -> 1 | E219: Distrito Municipal
A221: CÓDIGO CATÁLOGO | B221: ARTÍCULO | C221: UNIDAD DE MEDIDA | D221: CANTIDAD TOTAL ESTIMADA | E221: PRECIO UNITARIO ESTIMADO | F221: MONTO TOTAL ESTIMADO
A222: 52151704 | B222: =IFERROR(INDEX(UNSPSCDes,MATCH(INDIRECT(ADDRESS(ROW(),COLUMN()-1,4)),UNSPSCCode,0)),IF(INDIRECT(ADDRESS(ROW(),COLUMN()-1,4))="52151704","Cucharas para uso doméstico","")) -> Cucharas para uso doméstico | C222: =IFERROR(VLOOKUP("PAQ",'Informacion '!P:Q,2,FALSE),"") -> Paquete | D222: 284 | E222: 50 | F222: =INDIRECT(ADDRESS(ROW(),COLUMN()-2,4))*INDIRECT(ADDRESS(ROW(),COLUMN()-1,4)) -> 14200
A223: 52151504 | B223: =IFERROR(INDEX(UNSPSCDes,MATCH(INDIRECT(ADDRESS(ROW(),COLUMN()-1,4)),UNSPSCCode,0)),IF(INDIRECT(ADDRESS(ROW(),COLUMN()-1,4))="52151504","Tazas o vasos o tapas desechables para uso doméstico","")) -> Tazas o vasos o tapas desechables para uso doméstico | C223: =IFERROR(VLOOKUP("PAQ",'Informacion '!P:Q,2,FALSE),"") -> Paquete | D223: 340 | E223: 120 | F223: 40800
A224: 52151503 | B224: =IFERROR(INDEX(UNSPSCDes,MATCH(INDIRECT(ADDRESS(ROW(),COLUMN()-1,4)),UNSPSCCode,0)),IF(INDIRECT(ADDRESS(ROW(),COLUMN()-1,4))="52151503","Cubiertos desechables para uso doméstico","")) -> Cubiertos desechables para uso doméstico | C224: =IFERROR(VLOOKUP("PAQ",'Informacion '!P:Q,2,FALSE),"") -> Paquete | D224: 270 | E224: 55 | F224: 14850
A225: 52151502 | B225: =IFERROR(INDEX(UNSPSCDes,MATCH(INDIRECT(ADDRESS(ROW(),COLUMN()-1,4)),UNSPSCCode,0)),IF(INDIRECT(ADDRESS(ROW(),COLUMN()-1,4))="52151502","Platos desechables para uso doméstico","")) -> Platos desechables para uso doméstico | C225: =IFERROR(VLOOKUP("PAQ",'Informacion '!P:Q,2,FALSE),"") -> Paquete | D225: 170 | E225: 85 | F225: 14450
A226: 14111705 | B226: =IFERROR(INDEX(UNSPSCDes,MATCH(INDIRECT(ADDRESS(ROW(),COLUMN()-1,4)),UNSPSCCode,0)),IF(INDIRECT(ADDRESS(ROW(),COLUMN()-1,4))="14111705","Servilletas de papel","")) -> Servilletas de papel | C226: =IFERROR(VLOOKUP("PAQ",'Informacion '!P:Q,2,FALSE),"") -> Paquete | D226: 268 | E226: 160 | F226: 42880
A227: 14111703 | B227: =IFERROR(INDEX(UNSPSCDes,MATCH(INDIRECT(ADDRESS(ROW(),COLUMN()-1,4)),UNSPSCCode,0)),IF(INDIRECT(ADDRESS(ROW(),COLUMN()-1,4))="14111703","Toallas de papel","")) -> Toallas de papel | C227: =IFERROR(VLOOKUP("UD",'Informacion '!P:Q,2,FALSE),"") -> Unidad | D227: 250 | E227: 160 | F227: 40000
A228: 14111704 | B228: =IFERROR(INDEX(UNSPSCDes,MATCH(INDIRECT(ADDRESS(ROW(),COLUMN()-1,4)),UNSPSCCode,0)),IF(INDIRECT(ADDRESS(ROW(),COLUMN()-1,4))="14111704","Papel higiénico","")) -> Papel higiénico | C228: =IFERROR(VLOOKUP("PAQ",'Informacion '!P:Q,2,FALSE),"") -> Paquete | D228: 240 | E228: 450 | F228: 108000
E229: TOTAL COMPRA ESTIMADA | F229: =SUM(Table17[MONTO TOTAL ESTIMADO]) -> 275180 | H229: =C215 -> Bienes | I229: =E215 -> Sí | J229: =D215 -> Compras Menores
A231: NOMBRE O REFERENCIA DE CONTRATACIÓN | B231: FINALIDAD DE LA CONTRATACIÓN | C231: OBJETO DE CONTRATACIÓN | D231: PROCEDIMIENTO DE SELECCIÓN | E231: DESTINADO A MIPYMES | F231: CÓDIGO SNIP
A232: MATERIALES DESECHABLES | B232: PARA USO DEL MINISTERIO DE TRABAJO | C232: Bienes | D232: Compras Menores | E232: Sí | F232: 52151704
A233: FECHA DE NECESSIDAD | B233: FECHA INICIO PROCESO DE COMPRA | C233: 2021-04-01 | D233: LUGAR DE EJECUCIÓN / ENTREGA | E233: Región
... 916 more rows

Sheet Informacion (hidden)
A1: REGIONES | B1: PROVINCIAS | D1: MUNICIPIOS | G1: DISTRITOS MUNICIPALES
A2: REGION | B2: REGION | C2: PROVINCIA | D2: REGION | E2: PROVINCIA | F2: MUNICIPIO | G2: REGION | H2: PROVINCIA | I2: MUNICIPIO | J2: DISTRITO MUNICIPAL | L2: Procedimientos | N2: Destinado a MIPYME? | P2: Un | Q2: Desc. | S2: Objeto de Contratación | U2: Etiquetas necesarias
A3: CIBAO NORTE | B3: CIBAO NORTE | C3: Santiago | D3: CIBAO NORTE | E3: Santiago | F3: Santiago de los Caballeros | G3: CIBAO NORDESTE | H3: Duarte | I3: Arenoso | J3: Arenoso | L3: Comparacion de Precios | N3: Sí | P3: CAJ | Q3: Caja | S3: Bienes | U3: TOTAL COMPRA ESTIMADA
A4: CIBAO SUR | B4: CIBAO NORTE | C4: Puerto Plata | D4: CIBAO NORTE | E4: Santiago | F4: Sabana Iglesia | G4: CIBAO NORDESTE | H4: Duarte | I4: Arenoso | J4: El Aguacate | L4: Compras Menores | N4: MIPYME Mujeres | P4: CM | Q4: Centímetro | S4: Servicios
A5: CIBAO NORDESTE | B5: CIBAO NORTE | C5: Espaillat | D5: CIBAO NORTE | E5: Santiago | F5: Villa Bisonó (Navarrete) | G5: CIBAO NORDESTE | H5: Duarte | I5: Arenoso | J5: Las Coles | L5: Compras por debajo del Umbral | N5: No | P5: CM2 | Q5: Centímetro Cuadrado | S5: Servicios: Consultorías
A6: CIBAO NOROESTE | B6: CIBAO SUR | C6: Concepción de La Vega | D6: CIBAO NORTE | E6: Santiago | F6: Jánico | G6: CIBAO NORDESTE | H6: Duarte | I6: Castillo | J6: Castillo | L6: Excepción - Bienes o servicios con exclusividad | P6: CT | Q6: Ciento | S6: Servicios: Consultoría basada en la calidad de los servicios
A7: VALDESIA | B7: CIBAO SUR | C7: Monseñor Nouel | D7: CIBAO NORTE | E7: Santiago | F7: Licey al Medio | G7: CIBAO NORDESTE | H7: Duarte | I7: Hostos | J7: Hostos | L7: Excepción - Construcción, instalación o adquisición de oficinas para el servicio exterior | P7: DEC | Q7: Decena | S7: Obras
A8: ENRIQUILLO | B8: CIBAO SUR | C8: Sánchez Ramírez | D8: CIBAO NORTE | E8: Santiago | F8: San José de las Matas | G8: CIBAO NORDESTE | H8: Duarte | I8: Hostos | J8: Sabana Grande de Hostos | L8: Excepción - Contratación de publicidad a través de medios de comunicación social | P8: DM | Q8: Decímetro
A9: EL VALLE | B9: CIBAO NORDESTE | C9: Duarte | D9: CIBAO NORTE | E9: Santiago | F9: Tamboril | G9: CIBAO NORDESTE | H9: Duarte | I9: Las Guáranas | J9: Las Guáranas | L9: Excepción - Obras científicas, técnicas, artísticas, o restauración de monumentos históricos | P9: DÍA | Q9: Día
A10: YUMA | B10: CIBAO NORDESTE | C10: Hermanas Mirabal | D10: CIBAO NORTE | E10: Santiago | F10: Villa González | G10: CIBAO NORDESTE | H10: Duarte | I10: Pimentel | J10: Pimentel | L10: Excepción - Proveedor Único | P10: DOC | Q10: Docena
A11: HIGUAMO | B11: CIBAO NORDESTE | C11: María Trinidad Sánchez | D11: CIBAO NORTE | E11: Santiago | F11: Puñal | G11: CIBAO NORDESTE | H11: Duarte | I11: San Fco. de Macorís | J11: Cenoví | L11: Excepción - Rescisión de contratos cuya terminación no exceda el 40% del monto total del proyecto, obra o servicio | P11: GAL | Q11: Galón
A12: OZAMA O METROPOLITANA | B12: CIBAO NORDESTE | C12: Samaná | D12: CIBAO NORTE | E12: Puerto Plata | F12: San Felipe de Puerto Plata | G12: CIBAO NORDESTE | H12: Duarte | I12: San Fco. de Macorís | J12: Don Antonio Guzmán Fernández | L12: Excepción - Resolución 15-08 sobre compra y contratación de pasaje aéreo, combustible y reparación de vehículos de motor | P12: G | Q12: Gramo
B13: CIBAO NOROESTE | C13: Valverde | D13: CIBAO NORTE | E13: Puerto Plata | F13: Altamira | G13: CIBAO NORDESTE | H13: Duarte | I13: San Fco. de Macorís | J13: Jaya | L13: Licitacion Publica | P13: H | Q13: Hora
B14: CIBAO NOROESTE | C14: Santiago Rodriguez | D14: CIBAO NORTE | E14: Puerto Plata | F14: Guananico | G14: CIBAO NORDESTE | H14: Duarte | I14: San Fco. de Macorís | J14: La Peña | L14: Licitacion Publica Internacional | P14: H/H | Q14: Hora Hombre
B15: CIBAO NOROESTE | C15: Montecristi | D15: CIBAO NORTE | E15: Puerto Plata | F15: Imbert | G15: CIBAO NORDESTE | H15: Duarte | I15: San Fco. de Macorís | J15: San Fco. de Macorís | L15: Licitacion Restringida | P15: KG | Q15: Kilogramo
B16: CIBAO NOROESTE | C16: Dajabón | D16: CIBAO NORTE | E16: Puerto Plata | F16: Los Hidalgos | G16: CIBAO NORDESTE | H16: Duarte | I16: Villa Riva | J16: Agua Santa del Yuna | L16: Sorteo de Obras | P16: KM | Q16: Kilómetro
B17: VALDESIA | C17: San Cristóbal | D17: CIBAO NORTE | E17: Puerto Plata | F17: Luperón | G17: CIBAO NORDESTE | H17: Duarte | I17: Villa Riva | J17: Barraquito | L17: Subasta Inversa | P17: KM2 | Q17: Kilómetro cuadrado
B18: VALDESIA | C18: Peravia | D18: CIBAO NORTE | E18: Puerto Plata | F18: Sosúa | G18: CIBAO NORDESTE | H18: Duarte | I18: Villa Riva | J18: Cristo Rey de Guaraguao | P18: LB | Q18: Libra
B19: VALDESIA | C19: San José de Ocoa | D19: CIBAO NORTE | E19: Puerto Plata | F19: Villa Isabela | G19: CIBAO NORDESTE | H19: Duarte | I19: Villa Riva | J19: Las Táranas | P19: L | Q19: Litro
B20: VALDESIA | C20: Azua | D20: CIBAO NORTE | E20: Puerto Plata | F20: Villa Montellano | G20: CIBAO NORDESTE | H20: Duarte | I20: Villa Riva | J20: Villa Riva | P20: MES | Q20: Mes
B21: ENRIQUILLO | C21: Barahona | D21: CIBAO NORTE | E21: Espaillat | F21: Moca | G21: CIBAO NORDESTE | H21: Hermanas Mirabal | I21: Salcedo | J21: Jamao Afuera | P21: M | Q21: Metro
B22: ENRIQUILLO | C22: Bahoruco | D22: CIBAO NORTE | E22: Espaillat | F22: Cayetano Germosén | G22: CIBAO NORDESTE | H22: Hermanas Mirabal | I22: Salcedo | J22: Salcedo | P22: M2 | Q22: Metro cuadrado
B23: ENRIQUILLO | C23: Pedernales | D23: CIBAO NORTE | E23: Espaillat | F23: Gaspar Hernández | G23: CIBAO NORDESTE | H23: Hermanas Mirabal | I23: Tenares | J23: Blanco | P23: M3 | Q23: Metro cúbico
B24: ENRIQUILLO | C24: Independencia | D24: CIBAO NORTE | E24: Espaillat | F24: Jamao al Norte | G24: CIBAO NORDESTE | H24: Hermanas Mirabal | I24: Tenares | J24: Tenares | P24: MG | Q24: Miligramo
B25: EL VALLE | C25: San Juan | D25: CIBAO SUR | E25: Concepción de La Vega | F25: La Vega | G25: CIBAO NORDESTE | H25: Hermanas Mirabal | I25: Villa Tapia | J25: Villa Tapia | P25: MM | Q25: Milímetro
B26: EL VALLE | C26: Elías Piña | D26: CIBAO SUR | E26: Concepción de La Vega | F26: Constanza | G26: CIBAO NORDESTE | H26: María Trinidad Sánchez | I26: Cabrera | J26: Arroyo Salado | P26: MI | Q26: Milla
B27: YUMA | C27: La Romana | D27: CIBAO SUR | E27: Concepción de La Vega | F27: Jarabacoa | G27: CIBAO NORDESTE | H27: María Trinidad Sánchez | I27: Cabrera | J27: Cabrera | P27: MIL | Q27: Millar
B28: YUMA | C28: La Altagracia | D28: CIBAO SUR | E28: Concepción de La Vega | F28: Jima Abajo | G28: CIBAO NORDESTE | H28: María Trinidad Sánchez | I28: Cabrera | J28: La Entrada | P28: OZ | Q28: Onza
B29: YUMA | C29: El Seibo | D29: CIBAO SUR | E29: Monseñor Nouel | F29: Bonao | G29: CIBAO NORDESTE | H29: María Trinidad Sánchez | I29: El Factor | J29: El Factor | P29: PAQ | Q29: Paquete
B30: HIGUAMO | C30: San Pedro de Macorís | D30: CIBAO SUR | E30: Monseñor Nouel | F30: Maimón | G30: CIBAO NORDESTE | H30: María Trinidad Sánchez | I30: El Factor | J30: El Pozo | P30: FT | Q30: Pie
B31: HIGUAMO | C31: Hato Mayor | D31: CIBAO SUR | E31: Monseñor Nouel | F31: Piedra Blanca | G31: CIBAO NORDESTE | H31: María Trinidad Sánchez | I31: Nagua | J31: Arroyo al Medio | P31: FT2 | Q31: Pie cuadrado
B32: HIGUAMO | C32: Monte Plata | D32: CIBAO SUR | E32: Sánchez Ramírez | F32: Cotuí | G32: CIBAO NORDESTE | H32: María Trinidad Sánchez | I32: Nagua | J32: Las Gordas | P32: FT3 | Q32: Pie cúbico
B33: OZAMA O METROPOLITANA | C33: Distrito Nacional | D33: CIBAO SUR | E33: Sánchez Ramírez | F33: Cevicos | G33: CIBAO NORDESTE | H33: María Trinidad Sánchez | I33: Nagua | J33: Nagua | P33: IN | Q33: Pulgada
B34: OZAMA O METROPOLITANA | C34: Santo Domingo | D34: CIBAO SUR | E34: Sánchez Ramírez | F34: Fantino | G34: CIBAO NORDESTE | H34: María Trinidad Sánchez | I34: Nagua | J34: San José de Matanzas | P34: PULG | Q34: Pulgada
D35: CIBAO SUR | E35: Sánchez Ramírez | F35: La Mata | G35: CIBAO NORDESTE | H35: María Trinidad Sánchez | I35: Río San Juan | J35: Río San Juan | P35: IN2 | Q35: Pulgada cuadrada
D36: CIBAO NORDESTE | E36: Duarte | F36: San Fco. de Macorís | G36: CIBAO NORDESTE | H36: Samaná | I36: Las Terrenas | J36: Las Terrenas | P36: 500UD | Q36: Quinientas unidades
D37: CIBAO NORDESTE | E37: Duarte | F37: Arenoso | G37: CIBAO NORDESTE | H37: Samaná | I37: Sánchez | J37: Sánchez | P37: Q | Q37: Quintal
D38: CIBAO NORDESTE | E38: Duarte | F38: Castillo | G38: CIBAO NORDESTE | H38: Samaná | I38: Santa Bárbara de Samaná | J38: Arroyo Barril | P38: RESMA | Q38: Resma
D39: CIBAO NORDESTE | E39: Duarte | F39: Hostos | G39: CIBAO NORDESTE | H39: Samaná | I39: Santa Bárbara de Samaná | J39: El Limón | P39: SEM | Q39: Semana
D40: CIBAO NORDESTE | E40: Duarte | F40: Pimentel | G40: CIBAO NORDESTE | H40: Samaná | I40: Santa Bárbara de Samaná | J40: Las Galeras | P40: TON | Q40: Tonelada
D41: CIBAO NORDESTE | E41: Duarte | F41: Villa Riva | G41: CIBAO NORDESTE | H41: Samaná | I41: Santa Bárbara de Samaná | J41: Santa Bárbara de Samaná | P41: UD | Q41: Unidad
D42: CIBAO NORDESTE | E42: Duarte | F42: Las Guáranas | G42: CIBAO NOROESTE | H42: Dajabón | I42: Dajabón | J42: Cañongo | P42: YD | Q42: Yarda
D43: CIBAO NORDESTE | E43: Hermanas Mirabal | F43: Salcedo | G43: CIBAO NOROESTE | H43: Dajabón | I43: Dajabón | J43: Dajabón | P43: YD2 | Q43: Yarda cuadrada
D44: CIBAO NORDESTE | E44: Hermanas Mirabal | F44: Tenares | G44: CIBAO NOROESTE | H44: Dajabón | I44: El Pino | J44: El Pino
D45: CIBAO NORDESTE | E45: Hermanas Mirabal | F45: Villa Tapia | G45: CIBAO NOROESTE | H45: Dajabón | I45: El Pino | J45: Manuel Bueno
D46: CIBAO NORDESTE | E46: María Trinidad Sánchez | F46: Nagua | G46: CIBAO NOROESTE | H46: Dajabón | I46: Loma de Cabrera | J46: Capotillo
D47: CIBAO NORDESTE | E47: María Trinidad Sánchez | F47: Cabrera | G47: CIBAO NOROESTE | H47: Dajabón | I47: Loma de Cabrera | J47: Loma de Cabrera
D48: CIBAO NORDESTE | E48: María Trinidad Sánchez | F48: El Factor | G48: CIBAO NOROESTE | H48: Dajabón | I48: Loma de Cabrera | J48: Santiago de la Cruz
D49: CIBAO NORDESTE | E49: María Trinidad Sánchez | F49: Río San Juan | G49: CIBAO NOROESTE | H49: Dajabón | I49: Partido | J49: Partido
D50: CIBAO NORDESTE | E50: Samaná | F50: Santa Bárbara de Samaná | G50: CIBAO NOROESTE | H50: Dajabón | I50: Restauración | J50: Restauración
D51: CIBAO NORDESTE | E51: Samaná | F51: Sánchez | G51: CIBAO NOROESTE | H51: Montecristi | I51: Castañuelas | J51: Castañuelas
D52: CIBAO NORDESTE | E52: Samaná | F52: Las Terrenas | G52: CIBAO NOROESTE | H52: Montecristi | I52: Castañuelas | J52: Palo Verde
D53: CIBAO NOROESTE | E53: Valverde | F53: Santa Cruz de Mao | G53: CIBAO NOROESTE | H53: Montecristi | I53: Guayubín | J53: Cana Chapetón
D54: CIBAO NOROESTE | E54: Valverde | F54: Esperanza | G54: CIBAO NOROESTE | H54: Montecristi | I54: Guayubín | J54: Guayubín
D55: CIBAO NOROESTE | E55: Valverde | F55: Laguna Salada | G55: CIBAO NOROESTE | H55: Montecristi | I55: Guayubín | J55: Hatillo Palma
D56: CIBAO NOROESTE | E56: Santiago Rodriguez | F56: San Ignacio de Sabaneta | G56: CIBAO NOROESTE | H56: Montecristi | I56: Guayubín | J56: Villa Elisa
D57: CIBAO NOROESTE | E57: Santiago Rodriguez | F57: Villa los Almácigos | G57: CIBAO NOROESTE | H57: Montecristi | I57: Las Matas de Santa Cruz | J57: Las Matas de Santa Cruz
D58: CIBAO NOROESTE | E58: Santiago Rodriguez | F58: Monción | G58: CIBAO NOROESTE | H58: Montecristi | I58: Pepillo Salcedo | J58: Pepillo Salcedo
D59: CIBAO NOROESTE | E59: Montecristi | F59: San Fernando de Montecristi | G59: CIBAO NOROESTE | H59: Montecristi | I59: San Fernando de Montecristi | J59: San Fernando de Montecristi
D60: CIBAO NOROESTE | E60: Montecristi | F60: Castañuelas | G60: CIBAO NOROESTE | H60: Montecristi | I60: Villa Vásquez | J60: Villa Vásquez
D61: CIBAO NOROESTE | E61: Montecristi | F61: Guayubín | G61: CIBAO NOROESTE | H61: Santiago Rodriguez | I61: Monción | J61: Monción
D62: CIBAO NOROESTE | E62: Montecristi | F62: Las Matas de Santa Cruz | G62: CIBAO NOROESTE | H62: Santiago Rodriguez | I62: San Ignacio de Sabaneta | J62: San Ignacio de Sabaneta
D63: CIBAO NOROESTE | E63: Montecristi | F63: Pepillo Salcedo | G63: CIBAO NOROESTE | H63: Santiago Rodriguez | I63: Villa los Almácigos | J63: Villa los Almácigos
D64: CIBAO NOROESTE | E64: Montecristi | F64: Villa Vásquez | G64: CIBAO NOROESTE | H64: Valverde | I64: Esperanza | J64: Boca de Mao
D65: CIBAO NOROESTE | E65: Dajabón | F65: Dajabón | G65: CIBAO NOROESTE | H65: Valverde | I65: Esperanza | J65: Esperanza
D66: CIBAO NOROESTE | E66: Dajabón | F66: Loma de Cabrera | G66: CIBAO NOROESTE | H66: Valverde | I66: Esperanza | J66: Jicomé
D67: CIBAO NOROESTE | E67: Dajabón | F67: Restauración | G67: CIBAO NOROESTE | H67: Valverde | I67: Esperanza | J67: Maizal
D68: CIBAO NOROESTE | E68: Dajabón | F68: Partido | G68: CIBAO NOROESTE | H68: Valverde | I68: Esperanza | J68: Paradero
D69: CIBAO NOROESTE | E69: Dajabón | F69: El Pino | G69: CIBAO NOROESTE | H69: Valverde | I69: Laguna Salada | J69: Cruce de Guayacanes
D70: VALDESIA | E70: San Cristóbal | F70: San Cristóbal | G70: CIBAO NOROESTE | H70: Valverde | I70: Laguna Salada | J70: Jaibón (Laguna Salada)
D71: VALDESIA | E71: San Cristóbal | F71: Bajos de Haina | G71: CIBAO NOROESTE | H71: Valverde | I71: Laguna Salada | J71: La Caya
D72: VALDESIA | E72: San Cristóbal | F72: Los Cacaos | G72: CIBAO NOROESTE | H72: Valverde | I72: Laguna Salada | J72: Laguna Salada
D73: VALDESIA | E73: San Cristóbal | F73: Cambita Garabitos | G73: CIBAO NOROESTE | H73: Valverde | I73: Santa Cruz de Mao | J73: Ámina
D74: VALDESIA | E74: San Cristóbal | F74: San Gregorio de Nigua | G74: CIBAO NOROESTE | H74: Valverde | I74: Santa Cruz de Mao | J74: Guatapanal
D75: VALDESIA | E75: San Cristóbal | F75: Sabana Grande de Palenque | G75: CIBAO NOROESTE | H75: Valverde | I75: Santa Cruz de Mao | J75: Jaibón (Pueblo Nuevo)
D76: VALDESIA | E76: San Cristóbal | F76: Yaguate | G76: CIBAO NOROESTE | H76: Valverde | I76: Santa Cruz de Mao | J76: Santa Cruz de Mao
D77: VALDESIA | E77: San Cristóbal | F77: Villa Altagracia | G77: CIBAO NORTE | H77: Espaillat | I77: Cayetano Germosén | J77: Cayetano Germosén
D78: VALDESIA | E78: Peravia | F78: Baní | G78: CIBAO NORTE | H78: Espaillat | I78: Gaspar Hernández | J78: Gaspar Hernández
D79: VALDESIA | E79: Peravia | F79: Nizao | G79: CIBAO NORTE | H79: Espaillat | I79: Gaspar Hernández | J79: Joba Arriba
D80: VALDESIA | E80: San José de Ocoa | F80: San José de Ocoa | G80: CIBAO NORTE | H80: Espaillat | I80: Gaspar Hernández | J80: Veragua
D81: VALDESIA | E81: San José de Ocoa | F81: Sabana Larga | G81: CIBAO NORTE | H81: Espaillat | I81: Gaspar Hernández | J81: Villa Magante
D82: VALDESIA | E82: San José de Ocoa | F82: Rancho Arriba | G82: CIBAO NORTE | H82: Espaillat | I82: Jamao al Norte | J82: Jamao al Norte
D83: VALDESIA | E83: Azua | F83: Azua de Compostela | G83: CIBAO NORTE | H83: Espaillat | I83: Moca | J83: Canca la Reina
D84: VALDESIA | E84: Azua | F84: Guayabal | G84: CIBAO NORTE | H84: Espaillat | I84: Moca | J84: El Higuerito
D85: VALDESIA | E85: Azua | F85: Las Charcas | G85: CIBAO NORTE | H85: Espaillat | I85: Moca | J85: José Contreras
D86: VALDESIA | E86: Azua | F86: Las Yayas de Viajama | G86: CIBAO NORTE | H86: Espaillat | I86: Moca | J86: Juan López
D87: VALDESIA | E87: Azua | F87: Padre Las Casas | G87: CIBAO NORTE | H87: Espaillat | I87: Moca | J87: La Ortega
D88: VALDESIA | E88: Azua | F88: Peralta | G88: CIBAO NORTE | H88: Espaillat | I88: Moca | J88: Las Lagunas Abajo
D89: VALDESIA | E89: Azua | F89: Sabana Yegua | G89: CIBAO NORTE | H89: Espaillat | I89: Moca | J89: Moca
D90: VALDESIA | E90: Azua | F90: Tábara Arriba | G90: CIBAO NORTE | H90: Espaillat | I90: Moca | J90: Monte de la Jagua
D91: VALDESIA | E91: Azua | F91: Estebanía | G91: CIBAO NORTE | H91: Espaillat | I91: Moca | J91: San Víctor
D92: VALDESIA | E92: Azua | F92: Pueblo Viejo | G92: CIBAO NORTE | H92: Puerto Plata | I92: Altamira | J92: Altamira
D93: ENRIQUILLO | E93: Barahona | F93: Santa Cruz de Barahona | G93: CIBAO NORTE | H93: Puerto Plata | I93: Altamira | J93: Río Grande
D94: ENRIQUILLO | E94: Barahona | F94: Cabral | G94: CIBAO NORTE | H94: Puerto Plata | I94: Guananico | J94: Guananico
D95: ENRIQUILLO | E95: Barahona | F95: Enriquillo | G95: CIBAO NORTE | H95: Puerto Plata | I95: Imbert | J95: Imbert
D96: ENRIQUILLO | E96: Barahona | F96: Las Salinas | G96: CIBAO NORTE | H96: Puerto Plata | I96: Los Hidalgos | J96: Los Hidalgos
D97: ENRIQUILLO | E97: Barahona | F97: Paraíso | G97: CIBAO NORTE | H97: Puerto Plata | I97: Los Hidalgos | J97: Navas
D98: ENRIQUILLO | E98: Barahona | F98: Polo | G98: CIBAO NORTE | H98: Puerto Plata | I98: Luperón | J98: Belloso
D99: ENRIQUILLO | E99: Barahona | F99: Vicente Noble | G99: CIBAO NORTE | H99: Puerto Plata | I99: Luperón | J99: El Estrecho de Luperón Omar Bross
D100: ENRIQUILLO | E100: Barahona | F100: El Peñón | G100: CIBAO NORTE | H100: Puerto Plata | I100: Luperón | J100: La Isabela
D101: ENRIQUILLO | E101: Barahona | F101: Fundación | G101: CIBAO NORTE | H101: Puerto Plata | I101: Luperón | J101: Luperón
D102: ENRIQUILLO | E102: Barahona | F102: La Ciénaga | G102: CIBAO NORTE | H102: Puerto Plata | I102: San Felipe de Puerto Plata | J102: Maimón
D103: ENRIQUILLO | E103: Barahona | F103: Jaquimeyes | G103: CIBAO NORTE | H103: Puerto Plata | I103: San Felipe de Puerto Plata | J103: San Felipe de Puerto Plata
D104: ENRIQUILLO | E104: Bahoruco | F104: Neyba | G104: CIBAO NORTE | H104: Puerto Plata | I104: San Felipe de Puerto Plata | J104: Yásica Arriba
D105: ENRIQUILLO | E105: Bahoruco | F105: Galván | G105: CIBAO NORTE | H105: Puerto Plata | I105: Sosúa | J105: Cabarete
D106: ENRIQUILLO | E106: Bahoruco | F106: Los Ríos | G106: CIBAO NORTE | H106: Puerto Plata | I106: Sosúa | J106: Sabaneta de Yásica
D107: ENRIQUILLO | E107: Bahoruco | F107: Tamayo | G107: CIBAO NORTE | H107: Puerto Plata | I107: Sosúa | J107: Sosúa
D108: ENRIQUILLO | E108: Bahoruco | F108: Villa Jaragua | G108: CIBAO NORTE | H108: Puerto Plata | I108: Villa Isabela | J108: Estero Hondo
D109: ENRIQUILLO | E109: Pedernales | F109: Pedernales | G109: CIBAO NORTE | H109: Puerto Plata | I109: Villa Isabela | J109: Gualete
D110: ENRIQUILLO | E110: Pedernales | F110: Oviedo | G110: CIBAO NORTE | H110: Puerto Plata | I110: Villa Isabela | J110: La Jaiba
D111: ENRIQUILLO | E111: Independencia | F111: Jimaní | G111: CIBAO NORTE | H111: Puerto Plata | I111: Villa Isabela | J111: Villa Isabela
D112: ENRIQUILLO | E112: Independencia | F112: Duvergé | G112: CIBAO NORTE | H112: Puerto Plata | I112: Villa Montellano | J112: Villa Montellano
D113: ENRIQUILLO | E113: Independencia | F113: La Descubierta | G113: CIBAO NORTE | H113: Santiago | I113: Jánico | J113: El Caimito
D114: ENRIQUILLO | E114: Independencia | F114: Mella | G114: CIBAO NORTE | H114: Santiago | I114: Jánico | J114: Jánico
D115: ENRIQUILLO | E115: Independencia | F115: Postrer Río | G115: CIBAO NORTE | H115: Santiago | I115: Jánico | J115: Juncalito
D116: ENRIQUILLO | E116: Independencia | F116: Cristóbal | G116: CIBAO NORTE | H116: Santiago | I116: Licey al Medio | J116: Las Palomas
D117: EL VALLE | E117: San Juan | F117: San Juan de la Maguana | G117: CIBAO NORTE | H117: Santiago | I117: Licey al Medio | J117: Licey al Medio
D118: EL VALLE | E118: San Juan | F118: Bohechio | G118: CIBAO NORTE | H118: Santiago | I118: Puñal | J118: Canabacoa
D119: EL VALLE | E119: San Juan | F119: El Cercado | G119: CIBAO NORTE | H119: Santiago | I119: Puñal | J119: Guayabal
D120: EL VALLE | E120: San Juan | F120: Juan de Herrera | G120: CIBAO NORTE | H120: Santiago | I120: Puñal | J120: Puñal
D121: EL VALLE | E121: San Juan | F121: Las Matas de Farfán | G121: CIBAO NORTE | H121: Santiago | I121: Sabana Iglesia | J121: Sabana Iglesia
D122: EL VALLE | E122: San Juan | F122: Vallejuelo | G122: CIBAO NORTE | H122: Santiago | I122: San José de las Matas | J122: El Rubio
D123: EL VALLE | E123: Elías Piña | F123: Comendador | G123: CIBAO NORTE | H123: Santiago | I123: San José de las Matas | J123: La Cuesta
D124: EL VALLE | E124: Elías Piña | F124: Bánica | G124: CIBAO NORTE | H124: Santiago | I124: San José de las Matas | J124: Las Placetas
D125: EL VALLE | E125: Elías Piña | F125: El Llano | G125: CIBAO NORTE | H125: Santiago | I125: San José de las Matas | J125: San José de las Matas
D126: EL VALLE | E126: Elías Piña | F126: Hondo Valle | G126: CIBAO NORTE | H126: Santiago | I126: Santiago de los Caballeros | J126: Baitoa
D127: EL VALLE | E127: Elías Piña | F127: Pedro Santana | G127: CIBAO NORTE | H127: Santiago | I127: Santiago de los Caballeros | J127: Hato del Yaque
D128: EL VALLE | E128: Elías Piña | F128: Juan Santiago | G128: CIBAO NORTE | H128: Santiago | I128: Santiago de los Caballeros | J128: La Canela
D129: YUMA | E129: La Romana | F129: La Romana | G129: CIBAO NORTE | H129: Santiago | I129: Santiago de los Caballeros | J129: Pedro García
D130: YUMA | E130: La Romana | F130: Guaymate | G130: CIBAO NORTE | H130: Santiago | I130: Santiago de los Caballeros | J130: San Francisco de Jacagua
D131: YUMA | E131: La Romana | F131: Villa Hermosa | G131: CIBAO NORTE | H131: Santiago | I131: Santiago de los Caballeros | J131: Santiago de los Caballeros
D132: YUMA | E132: La Altagracia | F132: Salvaléon de Higüey | G132: CIBAO NORTE | H132: Santiago | I132: Tamboril | J132: Canca la Piedra
D133: YUMA | E133: La Altagracia | F133: San Rafael del Yuma | G133: CIBAO NORTE | H133: Santiago | I133: Tamboril | J133: Tamboril
D134: YUMA | E134: El Seibo | F134: Santa Cruz del Seibo | G134: CIBAO NORTE | H134: Santiago | I134: Villa Bisonó (Navarrete) | J134: Villa Bisonó (Navarrete)
D135: YUMA | E135: El Seibo | F135: Miches | G135: CIBAO NORTE | H135: Santiago | I135: Villa González | J135: El Limón
D136: HIGUAMO | E136: San Pedro de Macorís | F136: San Pedro de Macorís | G136: CIBAO NORTE | H136: Santiago | I136: Villa González | J136: Palmar Arriba
D137: HIGUAMO | E137: San Pedro de Macorís | F137: San José de los Llanos | G137: CIBAO NORTE | H137: Santiago | I137: Villa González | J137: Villa González
D138: HIGUAMO | E138: San Pedro de Macorís | F138: Ramón Santana | G138: CIBAO SUR | H138: Concepción de La Vega | I138: Constanza | J138: Constanza
D139: HIGUAMO | E139: San Pedro de Macorís | F139: Consuelo | G139: CIBAO SUR | H139: Concepción de La Vega | I139: Constanza | J139: La Sabina
D140: HIGUAMO | E140: San Pedro de Macorís | F140: Quisqueya | G140: CIBAO SUR | H140: Concepción de La Vega | I140: Constanza | J140: Tireo Arriba
D141: HIGUAMO | E141: San Pedro de Macorís | F141: Guayacanes | G141: CIBAO SUR | H141: Concepción de La Vega | I141: Jarabacoa | J141: Buena Vista
D142: HIGUAMO | E142: Hato Mayor | F142: Hato Mayor del Rey | G142: CIBAO SUR | H142: Concepción de La Vega | I142: Jarabacoa | J142: Jarabacoa
D143: HIGUAMO | E143: Hato Mayor | F143: Sabana de la Mar | G143: CIBAO SUR | H143: Concepción de La Vega | I143: Jarabacoa | J143: Manabao
D144: HIGUAMO | E144: Hato Mayor | F144: El Valle | G144: CIBAO SUR | H144: Concepción de La Vega | I144: Jima Abajo | J144: Jima Abajo
D145: HIGUAMO | E145: Monte Plata | F145: Monte Plata | G145: CIBAO SUR | H145: Concepción de La Vega | I145: Jima Abajo | J145: Rincón
D146: HIGUAMO | E146: Monte Plata | F146: Bayaguana | G146: CIBAO SUR | H146: Concepción de La Vega | I146: La Vega | J146: El Ranchito
D147: HIGUAMO | E147: Monte Plata | F147: Sabana Grande de Boyá | G147: CIBAO SUR | H147: Concepción de La Vega | I147: La Vega | J147: La Vega
D148: HIGUAMO | E148: Monte Plata | F148: Yamasá | G148: CIBAO SUR | H148: Concepción de La Vega | I148: La Vega | J148: Río Verde Arriba
D149: HIGUAMO | E149: Monte Plata | F149: Peralvillo | G149: CIBAO SUR | H149: Monseñor Nouel | I149: Bonao | J149: Arroyo Toro Masipedro
D150: OZAMA O METROPOLITANA | E150: Distrito Nacional | F150: Distrito Nacional | G150: CIBAO SUR | H150: Monseñor Nouel | I150: Bonao | J150: Bonao
D151: OZAMA O METROPOLITANA | E151: Santo Domingo | F151: Santo Domingo Este | G151: CIBAO SUR | H151: Monseñor Nouel | I151: Bonao | J151: Jayaco
D152: OZAMA O METROPOLITANA | E152: Santo Domingo | F152: Santo Domingo Oeste | G152: CIBAO SUR | H152: Monseñor Nouel | I152: Bonao | J152: Juma Bejucal
D153: OZAMA O METROPOLITANA | E153: Santo Domingo | F153: Santo Domingo Norte | G153: CIBAO SUR | H153: Monseñor Nouel | I153: Bonao | J153: La Salvia- Los Quemados
D154: OZAMA O METROPOLITANA | E154: Santo Domingo | F154: Boca Chica | G154: CIBAO SUR | H154: Monseñor Nouel | I154: Bonao | J154: Sabana del Puerto
D155: OZAMA O METROPOLITANA | E155: Santo Domingo | F155: Guerra | G155: CIBAO SUR | H155: Monseñor Nouel | I155: Maimón | J155: Maimón
D156: OZAMA O METROPOLITANA | E156: Santo Domingo | F156: Los Alcarrizos | G156: CIBAO SUR | H156: Monseñor Nouel | I156: Piedra Blanca | J156: Juan Adrián
D157: OZAMA O METROPOLITANA | E157: Santo Domingo | F157: Pedro Brand | G157: CIBAO SUR | H157: Monseñor Nouel | I157: Piedra Blanca | J157: Piedra Blanca
G158: CIBAO SUR | H158: Monseñor Nouel | I158: Piedra Blanca | J158: Villa de Sonador
G159: CIBAO SUR | H159: Sánchez Ramírez | I159: Cevicos | J159: Cevicos
G160: CIBAO SUR | H160: Sánchez Ramírez | I160: Cevicos | J160: La Cueva
G161: CIBAO SUR | H161: Sánchez Ramírez | I161: Cotuí | J161: Caballero
G162: CIBAO SUR | H162: Sánchez Ramírez | I162: Cotuí | J162: Comedero Arriba
G163: CIBAO SUR | H163: Sánchez Ramírez | I163: Cotuí | J163: Cotuí
G164: CIBAO SUR | H164: Sánchez Ramírez | I164: Cotuí | J164: Platanal
G165: CIBAO SUR | H165: Sánchez Ramírez | I165: Cotuí | J165: Quita Sueño
G166: CIBAO SUR | H166: Sánchez Ramírez | I166: Fantino | J166: Fantino
G167: CIBAO SUR | H167: Sánchez Ramírez | I167: La Mata | J167: Angelina
G168: CIBAO SUR | H168: Sánchez Ramírez | I168: La Mata | J168: Hernando Alonso
G169: CIBAO SUR | H169: Sánchez Ramírez | I169: La Mata | J169: La Bija
G170: CIBAO SUR | H170: Sánchez Ramírez | I170: La Mata | J170: La Mata
G171: EL VALLE | H171: Elías Piña | I171: Bánica | J171: Bánica
G172: EL VALLE | H172: Elías Piña | I172: Bánica | J172: Sabana Cruz
G173: EL VALLE | H173: Elías Piña | I173: Bánica | J173: Sabana Higüero
G174: EL VALLE | H174: Elías Piña | I174: Comendador | J174: Comendador
G175: EL VALLE | H175: Elías Piña | I175: Comendador | J175: Guayabo
G176: EL VALLE | H176: Elías Piña | I176: Comendador | J176: Sabana Larga
G177: EL VALLE | H177: Elías Piña | I177: El Llano | J177: El Llano
G178: EL VALLE | H178: Elías Piña | I178: El Llano | J178: Guanito
G179: EL VALLE | H179: Elías Piña | I179: Hondo Valle | J179: Hondo Valle
G180: EL VALLE | H180: Elías Piña | I180: Hondo Valle | J180: Rancho de la Guardia
G181: EL VALLE | H181: Elías Piña | I181: Juan Santiago | J181: Juan Santiago
G182: EL VALLE | H182: Elías Piña | I182: Pedro Santana | J182: Pedro Santana
G183: EL VALLE | H183: Elías Piña | I183: Pedro Santana | J183: Río Limpio
G184: EL VALLE | H184: San Juan | I184: Bohechio | J184: Arroyo Cano
G185: EL VALLE | H185: San Juan | I185: Bohechio | J185: Bohechio
G186: EL VALLE | H186: San Juan | I186: Bohechio | J186: El Yaque
G187: EL VALLE | H187: San Juan | I187: El Cercado | J187: Batista
G188: EL VALLE | H188: San Juan | I188: El Cercado | J188: El Cercado
G189: EL VALLE | H189: San Juan | I189: El Cercado | J189: Nuevo Brasil
G190: EL VALLE | H190: San Juan | I190: Juan de Herrera | J190: Jínova
G191: EL VALLE | H191: San Juan | I191: Juan de Herrera | J191: Juan de Herrera
G192: EL VALLE | H192: San Juan | I192: Las Matas de Farfán | J192: Carrera de Yeguas
G193: EL VALLE | H193: San Juan | I193: Las Matas de Farfán | J193: Las Matas de Farfán
G194: EL VALLE | H194: San Juan | I194: Las Matas de Farfán | J194: Matayaya
G195: EL VALLE | H195: San Juan | I195: San Juan de la Maguana | J195: El Rosario
G196: EL VALLE | H196: San Juan | I196: San Juan de la Maguana | J196: Guanito
G197: EL VALLE | H197: San Juan | I197: San Juan de la Maguana | J197: Hato del Padre
G198: EL VALLE | H198: San Juan | I198: San Juan de la Maguana | J198: La Jagua
G199: EL VALLE | H199: San Juan | I199: San Juan de la Maguana | J199: Las Charcas de María Nova
G200: EL VALLE | H200: San Juan | I200: San Juan de la Maguana | J200: Las Maguanas, Hato Nuevo
... 187 more rows

Sheet UNSPSC
A1: 10101501 | B1: Gatos
A2: 10101502 | B2: Perros
A3: 10101504 | B3: Visón
A4: 10101505 | B4: Ratas
A5: 10101506 | B5: Caballos
A6: 10101507 | B6: Ovejas
A7: 10101508 | B7: Cabras
A8: 10101509 | B8: Asnos
A9: 10101510 | B9: Ratones
A10: 10101511 | B10: Cerdos
A11: 10101512 | B11: Conejos
A12: 10101513 | B12: Cobayas o conejillos de indias
A13: 10101514 | B13: Primates
A14: 10101515 | B14: Armadillos
A15: 10101516 | B15: Ganado vacuno
A16: 10101517 | B16: Camellos
A17: 10101601 | B17: Pollos vivos
A18: 10101602 | B18: Patos vivos
A19: 10101603 | B19: Pavos vivos
A20: 10101604 | B20: Gansos vivos
A21: 10101605 | B21: Faisanes vivos
A22: 10101701 | B22: Salmón vivos
A23: 10101702 | B23: Trucha viva
A24: 10101703 | B24: Tilapia viva
A25: 10101704 | B25: Carpa viva
A26: 10101705 | B26: Anguilas vivas
A27: 10101801 | B27: Camarón vivo
A28: 10101802 | B28: Almejas vivas
A29: 10101803 | B29: Mejillones vivos
A30: 10101804 | B30: Ostras vivas
A31: 10101805 | B31: Cangrejos vivos
A32: 10101806 | B32: Abulones vivos
A33: 10101807 | B33: Pulpo vivo
A34: 10101808 | B34: Calamar vivo
A35: 10101901 | B35: Mariposas
A36: 10101902 | B36: Escarabajos
A37: 10101903 | B37: Abejas
A38: 10101904 | B38: Gusanos de seda
A39: 10102001 | B39: Elefantes
A40: 10102002 | B40: Zorros vivos
A41: 10111301 | B41: Juguetes para mascotas
A42: 10111302 | B42: Productos para el aseo y cuidado de mascotas
A43: 10111303 | B43: Equipo para el manejo de desperdicios de las mascotas
A44: 10111304 | B44: Tazones o equipo para alimentación de mascotas
A45: 10111305 | B45: Tratamientos medicados para mascotas
A46: 10111306 | B46: Kits para el entrenamiento de mascotas domésticas
A47: 10111307 | B47: Cobijas para mascotas
A48: 10121501 | B48: Salvado de trigo puro
A49: 10121502 | B49: Avena para forraje
A50: 10121503 | B50: Maíz para forraje
A51: 10121504 | B51: Sorgo para forraje
A52: 10121505 | B52: Heno
A53: 10121506 | B53: Tortas oleaginosas
A54: 10121601 | B54: Alimento vivo para aves
A55: 10121602 | B55: Alpiste
A56: 10121603 | B56: Pasa bocas o comida recreacional para aves
A57: 10121604 | B57: Alimento avícola
A58: 10121701 | B58: Salmuera fresca o congelada
A59: 10121702 | B59: Alimento granulado para peces
A60: 10121703 | B60: Alimento en hojuelas para peces
A61: 10121801 | B61: Comida seca para perros
A62: 10121802 | B62: Comida húmeda para perros
A63: 10121803 | B63: Leche para perros o gatos
A64: 10121804 | B64: Comida seca para gatos
A65: 10121805 | B65: Comida húmeda para gatos
A66: 10121806 | B66: Pasa bocas o comida recreacional para gatos o perros
A67: 10121901 | B67: Comida granulada para roedores
A68: 10122001 | B68: Comida granulada para reptiles
A69: 10122002 | B69: Comida húmeda para reptiles
A70: 10122003 | B70: Comida viva para reptiles
A71: 10122101 | B71: Comida para cerdos
A72: 10122102 | B72: Comida para visones
A73: 10122103 | B73: Comida para monos
A74: 10131506 | B74: Establos para ganado
A75: 10131507 | B75: Casas para mascotas domesticadas
A76: 10131508 | B76: Camas para mascotas
A77: 10131601 | B77: Jaulas o sus accesorios
A78: 10131602 | B78: Perreras
A79: 10131603 | B79: Equipaje para el transporte de animales
A80: 10131604 | B80: Correas para perros
A81: 10131701 | B81: Terrarios
A82: 10131702 | B82: Acuarios
A83: 10141501 | B83: Sillas de montar
A84: 10141502 | B84: Fustas y látigos
A85: 10141503 | B85: Herraduras para caballo
A86: 10141504 | B86: Herraduras para mula
A87: 10141601 | B87: Bridas
A88: 10141602 | B88: Yugos
A89: 10141603 | B89: Bocados para caballos
A90: 10141604 | B90: Riendas
A91: 10141605 | B91: Estribos
A92: 10141606 | B92: Correas o traíllas
A93: 10141607 | B93: Arneses de cuello para animales
A94: 10141608 | B94: Arneses o sus accesorios
A95: 10141609 | B95: Sujetadores
A96: 10141610 | B96: Bozales
A97: 10141611 | B97: Soportes para correas
A98: 10151501 | B98: Semillas o plántulas de fríjol
A99: 10151502 | B99: Semillas o plántulas de zanahoria
A100: 10151503 | B100: Semillas o plántulas de apio
A101: 10151504 | B101: Semillas o plántulas de chiles
A102: 10151505 | B102: Semillas o plántulas de calabacín
A103: 10151506 | B103: Semillas o plántulas de alverja
A104: 10151507 | B104: Semillas o plántulas de pepino cohombro
A105: 10151508 | B105: Semillas o plántulas de berenjena
A106: 10151509 | B106: Semillas o plántulas de endivias
A107: 10151510 | B107: Semillas o plántulas de ajo
A108: 10151511 | B108: Semillas o plántulas de puerro
A109: 10151512 | B109: Semillas o plántulas de lechuga
A110: 10151513 | B110: Semillas o plántulas de maíz
A111: 10151514 | B111: Semillas o plántulas de melón
A112: 10151515 | B112: Semillas o plántulas cebolla
A113: 10151516 | B113: Semillas o plántulas de soya
A114: 10151517 | B114: Semillas o plántulas de espinaca
A115: 10151518 | B115: Semillas o plántulas de tomate
A116: 10151519 | B116: Semillas o plántulas de nabo
A117: 10151520 | B117: Semillas o plántulas de acelga
A118: 10151521 | B118: Semillas o plántulas de pimiento morrón
A119: 10151522 | B119: Semillas o plántulas de remolacha
A120: 10151523 | B120: Semillas o plántulas de coliflor
A121: 10151524 | B121: Semillas o plántulas de perejil
A122: 10151525 | B122: Semillas o plántulas de brócoli
A123: 10151526 | B123: Semillas o plántulas de repollo
A124: 10151527 | B124: Semillas o plántulas de papa
A125: 10151528 | B125: Semillas o plántulas de batata
A126: 10151529 | B126: Semillas o plántulas de calabaza
A127: 10151530 | B127: Semillas o plántulas de rábano
A128: 10151531 | B128: Semillas o plántulas de repollitos de bruselas
A129: 10151532 | B129: Semillas o plántulas de ahuyama
A130: 10151533 | B130: Semillas o plántulas de okra
A131: 10151534 | B131: Semillas o plántulas de melón cantalupo
A132: 10151535 | B132: Semillas o plántulas de maní
A133: 10151601 | B133: Semillas de trigo
A134: 10151602 | B134: Semillas de canola
A135: 10151603 | B135: Semillas de cebada
A136: 10151604 | B136: Semillas de mijo
A137: 10151605 | B137: Semillas de avena
A138: 10151606 | B138: Semillas de ajonjolí
A139: 10151607 | B139: Semillas de linaza
A140: 10151608 | B140: Semillas de aceite de ricino
A141: 10151609 | B141: Semillas de maíz
A142: 10151610 | B142: Semillas de centeno
A143: 10151611 | B143: Semillas de sorgo
A144: 10151701 | B144: Semillas o plántulas de arroz
A145: 10151702 | B145: Semillas o plántulas de trébol
A146: 10151703 | B146: Semillas o plántulas de alfalfa
A147: 10151704 | B147: Semillas o plántulas de pasto
A148: 10151705 | B148: Semillas o plántulas de veza (gachas / guija)
A149: 10151706 | B149: Semillas o plántulas de guar
A150: 10151801 | B150: Semillas o plántulas de pimienta
A151: 10151802 | B151: Semillas o plántulas de vainilla
A152: 10151803 | B152: Semillas o plántulas de canela
A153: 10151804 | B153: Semillas o plántulas de clavo de olor
A154: 10151805 | B154: Semillas o plántulas de cilantro
A155: 10151806 | B155: Semillas o plántulas de jengibre
A156: 10151807 | B156: Semillas o plántulas de azafrán
A157: 10151808 | B157: Semillas o plántulas de tomillo
A158: 10151809 | B158: Semillas o plántulas de curry
A159: 10151810 | B159: Semillas o plántulas de mostaza
A160: 10151811 | B160: Semillas o plántulas de ginseng
A161: 10151901 | B161: Semillas, bulbos, plántulas o esquejes de tulipán
A162: 10151902 | B162: Semillas, plántulas o esquejes de rosa
A163: 10151903 | B163: Semillas, bulbos, plántulas o esquejes de narciso
A164: 10151904 | B164: Semillas de girasol
A165: 10151905 | B165: Bulbos o tallos de jacinto
A166: 10151906 | B166: Bulbos de lirio
A167: 10151907 | B167: Semillas o plántulas de veza
A168: 10152001 | B168: Semillas o esquejes de árboles frutales
A169: 10152002 | B169: Semillas o esquejes de coníferas
A170: 10152003 | B170: Semillas o esquejes de árboles de frutos secos
A171: 10152101 | B171: Extracción de los residuos de semilla de babool
A172: 10152102 | B172: Residuos de semilla de colza
A173: 10152103 | B173: Residuo de semillas de linaza
A174: 10152104 | B174: Torta de neem
A175: 10152201 | B175: Semillas o plántulas de algodón
A176: 10152202 | B176: Semillas o plántulas de lino
A177: 10161501 | B177: Aceitunos
A178: 10161502 | B178: Cafetos
A179: 10161503 | B179: Cacaoteros
A180: 10161504 | B180: Manzanos
A181: 10161505 | B181: Peros
A182: 10161506 | B182: Naranjos
A183: 10161507 | B183: Rododendros
A184: 10161508 | B184: Plantas de te
A185: 10161509 | B185: Coníferas
A186: 10161510 | B186: Abetos rojos (píceas)
A187: 10161511 | B187: Pinos
A188: 10161512 | B188: Abetos
A189: 10161513 | B189: Palmeras
A190: 10161601 | B190: Rosales
A191: 10161602 | B191: Poinsettias
A192: 10161603 | B192: Orquídeas
A193: 10161604 | B193: Azaleas
A194: 10161605 | B194: Cactos
A195: 10161701 | B195: Gladiolos cortados
A196: 10161702 | B196: Azucenas cortadas
A197: 10161703 | B197: Claveles cortados
A198: 10161704 | B198: Tulipanes cortados
A199: 10161705 | B199: Rosas cortadas
A200: 10161707 | B200: Arreglo de flores cortadas
... 18098 more rows

Sheet ProcedureTemplate (hidden)
A1: NOMBRE O REFERENCIA DE CONTRATACIÓN | B1: FINALIDAD DE LA CONTRATACIÓN | C1: OBJETO DE CONTRATACIÓN | D1: PROCEDIMIENTO DE SELECCIÓN | E1: DESTINADO A MIPYMES | F1: CÓDIGO SNIP
A3: FECHA DE NECESSIDAD | B3: FECHA INICIO PROCESO DE COMPRA | D3: LUGAR DE EJECUCIÓN / ENTREGA | E3: Región
B4: TRIMESTRE | C4: =IF(C3="","",IF(AND(MONTH(C3)>=1,MONTH(C3)<=3),1,IF(AND(MONTH(C3)>=4,MONTH(C3)<=6),2,IF(AND(MONTH(C3)>=7,MONTH(C3)<=9),3,4)))) ->  | E4: Provincia
B5: FECHA PREVISTA ADJUDICACIÓN | E5: Municipio
B6: TRIMESTRE | C6: =IF(C5="","",IF(AND(MONTH(C5)>=1,MONTH(C5)<=3),1,IF(AND(MONTH(C5)>=4,MONTH(C5)<=6),2,IF(AND(MONTH(C5)>=7,MONTH(C5)<=9),3,4)))) ->  | E6: Distrito Municipal
A8: CÓDIGO CATÁLOGO | B8: ARTÍCULO | C8: UNIDAD DE MEDIDA | D8: CANTIDAD TOTAL ESTIMADA | E8: PRECIO UNITARIO ESTIMADO | F8: MONTO TOTAL ESTIMADO
B9: =IFERROR(INDEX(UNSPSCDes,MATCH(INDIRECT(ADDRESS(ROW(),COLUMN()-1,4)),UNSPSCCode,0)),"") ->  | F9: =INDIRECT(ADDRESS(ROW(),COLUMN()-2,4))*INDIRECT(ADDRESS(ROW(),COLUMN()-1,4)) -> 0
E10: TOTAL COMPRA ESTIMADA | F10: =SUM(Table3[MONTO TOTAL ESTIMADO]) -> 0 | H10: =C2 -> 0 | I10: =E2 -> 0 | J10: =D2 -> 0
